Workbook

Sheet sh
B1: محافظة اسيوط
B2: مديرية التربية والتعليم
B3: ادارة اسيوط التعليمية | D3: مذكرة للعرض على / السيد اللواء الوزير / محافظ اسيوط
B4: ادارة الموارد البشرية
B5: قسم الماهيات
B6: الموضوع : تنفيذ الاحكام القضائية الصادرة لللمعلمين بديوان ادارة اسيوط التعليمية ومدارسها باحقيتهم فى صرف الحوافز ومكافاة الامتحانات والاعمال الاضافية وجميع المزايا النقدية والعينية المقررة
B7: على اساس المرتب فى 30/6/2016 مع ما يترتب على ذلك من اثار من بند بدل المعلم 4 / 45 وبند حافز الاداء 3 / 23 وبند حافز الاثابة 3 / 3 وبند المكافاة 3 / 14 وبند الجهود الغير عادية
B8: العرض : صدر الكتاب الدورى رقم (1) لسنة 2020 من الجهاز المركزى للتنظيم والادارة بشان الاجراءات والمستندات اللازمة لموافاة الجهاز بها بتنفيذ الاحكام القضائية ضد الجهاز الادارى للدولة حيث نص بند (1)
B9: من وعلى ارفاق مذكرة معتمدة من السلطة المختصة متضمنه التكاليف اللازمة لتنفيذ الحكم والبند والنوع المطلوب للتنفيذ منه وحيث وردت الاحكام الاتية باجمالى مبلغ ( ) جنيه مصري لعدد ( ) | S9: تظهر | W9: جمع | AA9: تظهر | AE9: جمع | AF9: تظهر | AJ9: تظهر | AN9: جمع | AO9: تظهر | AS9: تظهر | AW9: جمع | AX9: تظهر | BB9: تظهر | BF9: جمع | BG9: تظهر | BK9: تظهر | BO9: جمع | BS9: تظهر | BW9: جمع | CA9: تظهر | CE9: جمع
A10: البند المطلوب تعزيزة : بند بدل المعلم 4 / 45 وبند بدل الاعتماد 4 / 46 وبند حافز الاداء 3 / 23 وبند حافز الاثابة 3 / 3 وبند المكافاة 3 / 14 وبند الجهود غير العادية للمعلمين بادارة اسيوط التعليمية ومدارسها الصادرة لهم احكام قضائية وبياناتهم كالاتى | N10: الفرق | O10: الفرق | P10: بدل معلم | Q10: بدل معلم | R10: بدل معلم | S10: بدل معلم | U10: عدد الشهور | V10: مبلغ المدة | W10: مبلغ المدة | X10: حافز ( 25 % ) | Y10: حافز ( 25 % ) | Z10: عدد الشهور | AA10: حافز 25 % | AC10: عدد الشهور | AD10: مبلغ المدة | AE10: مبلغ المدة | AF10: بدل اعتماد 1111 | AG10: قيمة الشهر | AH10: قيمة الشهر | AI10: عدد الشهور | AJ10: بدل اعتماد 1111 | AL10: عدد الشهور | AM10: مبلغ المدة | AN10: مبلغ المدة | AO10: بدل اعتماد 2222 | AP10: قيمة الشهر | AQ10: قيمة الشهر | AR10: عدد الشهور | AS10: بدل اعتماد 2222 | AU10: عدد الشهور | AV10: مبلغ المدة | AW10: مبلغ المدة | AX10: حافز اداء 1111 | AY10: قيمة الشهر | AZ10: قيمة الشهر | BA10: عدد الشهور | BB10: حافز اداء 1111 | BD10: عدد الشهور | BE10: مبلغ المدة | BF10: مبلغ المدة | BG10: حافز اداء 2222 | BH10: قيمة الشهر | BI10: قيمة الشهر | BJ10: عدد الشهور | BK10: حافز اداء 2222 | BM10: عدد الشهور | BN10: مبلغ المدة | BO10: مبلغ المدة | BP10: مكافاة الامتحانات | BQ10: مكافاة الامتحانات | BR10: عدد الشهور | BS10: مكافاة الامتحانات | BU10: عدد الشهور | BV10: مبلغ المدة | BW10: مبلغ المدة | BX10: جهود غير عادية | BY10: جهود غير عادية | BZ10: عدد الشهور | CA10: جهود غير عادية | CC10: عدد الشهور | CD10: مبلغ المدة | CE10: مبلغ المدة | CF10: صافى | CG10: التفقيط | CH10: الرقم القومى | CI10: مكان العمل | CJ10: بدل اعتماد | CK10: حافز اداء | CL10: معاش | CM10: ترقية | CN10: مسلسل | CO10: ملف
A11: م | B11: الاسم رباعى | C11: الرقم القومى | D11: المحكمة | E11: الدائرة | F11: اسم المدعى عليه | G11: رقم الدعوى | H11: تاريخ جلسة الحكم | I11: الفترة المستحق عنها الصرف | K11: اجمالى المبلغ | L11: الاساسي فى | P11: م ( 50 % ) | Q11: م ( 50 % ) | R11: فى | S11: عدد الشهور المستحقة | U11: المستحقة | Z11: المستحقة | AA11: عدد الشهور المستحقة | AC11: المستحقة | AI11: المستحقة | AJ11: عدد الشهور المستحقة | AL11: المستحقة | AR11: المستحقة | AS11: عدد الشهور المستحقة | AU11: المستحقة | BA11: المستحقة | BB11: عدد الشهور المستحقة | BD11: المستحقة | BJ11: المستحقة | BK11: عدد الشهور المستحقة | BM11: المستحقة | BR11: المستحقة | BS11: عدد الشهور المستحقة | BU11: المستحقة | BZ11: المستحقة | CA11: عدد الشهور المستحقة | CC11: المستحقة | CL11: استقالة | CN11: الترتيب | CO11: رقم
E12: التابعة | I12: من | J12: الى | L12: 2016-06-30 | M12: 2015-06-30 | O12: للطباعة | R12: اليوم | S12: يوم | T12: شهر | U12: باليوم | V12: المستحقة | W12: المستحقة | Z12: باليوم | AA12: يوم | AB12: شهر | AC12: باليوم | AD12: المستحقة | AE12: المستحقة | AI12: باليوم | AJ12: يوم | AK12: شهر | AL12: باليوم | AM12: المستحقة | AN12: المستحقة | AR12: باليوم | AS12: يوم | AT12: شهر | AU12: باليوم | AV12: المستحقة | AW12: المستحقة | BA12: باليوم | BB12: يوم | BC12: شهر | BD12: باليوم | BE12: المستحقة | BF12: المستحقة | BJ12: باليوم | BK12: يوم | BL12: شهر | BM12: باليوم | BN12: المستحقة | BO12: المستحقة | BR12: باليوم | BS12: يوم | BT12: شهر | BU12: باليوم | BV12: المستحقة | BW12: المستحقة | BZ12: باليوم | CA12: يوم | CB12: شهر | CC12: باليوم | CD12: المستحقة | CE12: المستحقة | CF12: المبلغ | CL12: وفاة
A13: 1 | B13: وائل عيد احمد محمد | C13: 27212122500097 | D13: محكمة القضاء الادارى باسيوط | E13: 104 | F13: وزير التربية والتعليم ـ محافظ اسيوط - وكيل وزارة التربية والتعليم | G13: 9631لسنة32ق | H13: 2021-10-19 | I13: 2016-07-01 | J13: 2022-06-30 | K13: =CE13+BW13+BO13+BF13+AW13+AN13+AE13+W13 -> 20390.2 | L13: 586.98 | M13: 507.51 | N13: =L13-M13 -> 79.47 | O13: =TRUNC(N13,2) -> 79.47 | P13: =O13*50/100 -> 39.735 | Q13: =TRUNC(P13,2) -> 39.73 | R13: =Q13/30 -> 1.324333333 | S13: 0 | T13: 72 | U13: =SUM((T13*30),S13) -> 2160 | V13: =U13*R13 -> 2860.56 | W13: =TRUNC(V13,2) -> 2860.56 | X13: =O13*25/100 -> 19.8675 | Y13: =TRUNC(X13,2) -> 19.86 | Z13: =Y13/30 -> 0.662 | AA13: 0 | AB13: 72 | AC13: =SUM((AB13*30),AA13) -> 2160 | AD13: =AC13*Z13 -> 1429.92 | AE13: =TRUNC(AD13,2) -> 1429.92 | AF13: بدل اعتماد معلم أول أ ( 150 % ) | AG13: =IF(AF13="بدل اعتماد معلم ( 100 % )",O13*100/100,IF(AF13="بدل اعتماد معلم أول ( 125 % )",O13*125/100,IF(AF13="بدل اعتماد معلم أول أ ( 150 % )",O13*150/100,IF(AF13="بدل اعتماد معلم خبير ( 175 % )",O13*175/100,IF(AF13="بدل اعتماد كبير معلمين ( 200 % )",O13*200/100))))) -> 119.205 | AH13: =TRUNC(AG13,2) -> 119.2 | AI13: =AH13/30 -> 3.973333333 | AJ13: 0 | AK13: 28 | AL13: =SUM((AK13*30),AJ13) -> 840 | AM13: =AL13*AI13 -> 3337.6 | AN13: =TRUNC(AM13,2) -> 3337.6 | AO13: بدل اعتماد معلم خبير ( 175 % ) | AP13: =IF(AO13="بدل اعتماد معلم ( 100 % )",O13*100/100,IF(AO13="بدل اعتماد معلم أول ( 125 % )",O13*125/100,IF(AO13="بدل اعتماد معلم أول أ ( 150 % )",O13*150/100,IF(AO13="بدل اعتماد معلم خبير ( 175 % )",O13*175/100,IF(AO13="بدل اعتماد كبير معلمين ( 200 % )",O13*200/100))))) -> 139.0725 | AQ13: =TRUNC(AP13,2) -> 139.07 | AR13: =AQ13/30 -> 4.635666667 | AS13: 0 | AT13: 44 | AU13: =SUM((AT13*30),AS13) -> 1320 | AV13: =AU13*AR13 -> 6119.08 | AW13: =TRUNC(AV13,2) -> 6119.08 | AX13: حافز اداء معلم أول أ ( 25 % ) | AY13: =IF(AX13="حافز اداء معلم ( 75 % )",O13*75/100,IF(AX13="حافز اداء معلم أول ( 50 % )",O13*50/100,IF(AX13="حافز اداء معلم أول أ ( 25 % )",O13*25/100,IF(AX13="حافز اداء معلم خبير ( 25 % )",O13*25/100,IF(AX13="حافز اداء كبير معلمين ( 25 % )",O13*25/100))))) -> 19.8675 | AZ13: =TRUNC(AY13,2) -> 19.86 | BA13: =AZ13/30 -> 0.662 | BB13: 0 | BC13: 28 | BD13: =SUM((BC13*30),BB13) -> 840 | BE13: =BD13*BA13 -> 556.08 | BF13: =TRUNC(BE13,2) -> 556.08 | BG13: حافز اداء معلم خبير ( 25 % ) | BH13: =IF(BG13="حافز اداء معلم ( 75 % )",O13*75/100,IF(BG13="حافز اداء معلم أول ( 50 % )",O13*50/100,IF(BG13="حافز اداء معلم أول أ ( 25 % )",O13*25/100,IF(BG13="حافز اداء معلم خبير ( 25 % )",O13*25/100,IF(BG13="حافز اداء كبير معلمين ( 25 % )",O13*25/100))))) -> 19.8675 | BI13: =TRUNC(BH13,2) -> 19.86 | BJ13: =BI13/30 -> 0.662 | BK13: 0 | BL13: 44 | BM13: =SUM((BL13*30),BK13) -> 1320 | BN13: =BM13*BJ13 -> 873.84 | BO13: =TRUNC(BN13,2) -> 873.84 | BP13: =O13*10 -> 794.7 | BQ13: =TRUNC(BP13,2) -> 794.7 | BR13: =BQ13/360 -> 2.2075 | BS13: 0 | BT13: 72 | BU13: =SUM((BT13*30),BS13) -> 2160 | BV13: =BU13*BR13 -> 4768.2 | BW13: =TRUNC(BV13,2) -> 4768.2 | BX13: =O13*40/100 -> 31.788 | BY13: =TRUNC(BX13,2) -> 31.78 | BZ13: =BY13/30 -> 1.059333333 | CA13: 0 | CB13: 14 | CC13: =SUM((CB13*30),CA13) -> 420 | CD13: =CC13*BZ13 -> 444.92 | CE13: =TRUNC(CD13,2) -> 444.92 | CF13: =CE13+BW13+BO13+BF13+AW13+AN13+AE13+W13 -> 20390.2 | CG13: =" فقط "&ArbNum2Text(CF13, 2,3,"جنيه","جنيهات",1,"قرش","قروش",1) -> فقط ÚÔÑæäó ÃáÝÇð æËáÇËãÇÆÉ æÊÓÚæäó جنيهÇð æ 20 قرش ÝÞØõ áÇ ÛíÑó | CH13: =C13 -> 27212122500097 | CI13: ديوان الادارة | CJ13: =AW13+AN13 -> 9456.68 | CK13: =BO13+BF13 -> 1429.92 | CM13: 2018-11-01 | CN13: 287 | CO13: 7
A14: 2 | B14: هانى مصطفى محمد حسانين | C14: 27212122500098 | D14: محكمة القضاء الادارى باسيوط | E14: 104 | F14: محافظ اسيوط -مدير مديرية التربية والتعليم | G14: 23676لسنة32ق | H14: 2021-10-19 | I14: 2016-07-01 | J14: 2022-06-30 | K14: 21178.74 | L14: 608.15 | M14: 525.61 | N14: 82.54 | O14: 82.54 | P14: 41.27 | Q14: 41.27 | R14: 1.375666667 | S14: 0 | T14: 72 | U14: 2160 | V14: 2971.44 | W14: 2971.44 | X14: 20.635 | Y14: 20.63 | Z14: 0.6876666667 | AA14: 0 | AB14: 72 | AC14: 2160 | AD14: 1485.36 | AE14: 1485.36 | AF14: بدل اعتماد معلم أول أ ( 150 % ) | AG14: 123.81 | AH14: 123.81 | AI14: 4.127 | AJ14: 0 | AK14: 28 | AL14: 840 | AM14: 3466.68 | AN14: 3466.68 | AO14: بدل اعتماد معلم خبير ( 175 % ) | AP14: 144.445 | AQ14: 144.44 | AR14: 4.814666667 | AS14: 0 | AT14: 44 | AU14: 1320 | AV14: 6355.36 | AW14: 6355.36 | AX14: حافز اداء معلم أول أ ( 25 % ) | AY14: 20.635 | AZ14: 20.63 | BA14: 0.6876666667 | BB14: 0 | BC14: 28 | BD14: 840 | BE14: 577.64 | BF14: 577.64 | BG14: حافز اداء معلم خبير ( 25 % ) | BH14: 20.635 | BI14: 20.63 | BJ14: 0.6876666667 | BK14: 0 | BL14: 44 | BM14: 1320 | BN14: 907.72 | BO14: 907.72 | BP14: 825.4 | BQ14: 825.4 | BR14: 2.292777778 | BS14: 0 | BT14: 72 | BU14: 2160 | BV14: 4952.4 | BW14: 4952.4 | BX14: 33.016 | BY14: 33.01 | BZ14: 1.100333333 | CA14: 0 | CB14: 14 | CC14: 420 | CD14: 462.14 | CE14: 462.14 | CF14: 21178.74 | CG14: فقط æÇÍÏ æÚÔÑæäó ÃáÝÇð æãÇÆÉ æËãÇä æÓÈÚæäó جنيهÇð æ 74 قرش ÝÞØõ áÇ ÛíÑó | CH14: 27212122500098 | CI14: احمد عرابي منقباد | CJ14: 9822.04 | CK14: 1485.36 | CM14: 2018-11-01 | CN14: 288 | CO14: 7
A15: 3 | B15: طلعت فتحى سيد محمد | C15: 27212122500099 | D15: محكمة القضاء الادارى باسيوط | E15: 104 | F15: محافظ اسيوط -مدير مديرية التربية والتعليم | G15: 23532لسنة32ق | H15: 2021-10-19 | I15: 2016-07-01 | J15: 2022-06-30 | K15: 21524.9 | L15: 610.06 | M15: 526.17 | N15: 83.89 | O15: 83.89 | P15: 41.945 | Q15: 41.94 | R15: 1.398 | S15: 0 | T15: 72 | U15: 2160 | V15: 3019.68 | W15: 3019.68 | X15: 20.9725 | Y15: 20.97 | Z15: 0.699 | AA15: 0 | AB15: 72 | AC15: 2160 | AD15: 1509.84 | AE15: 1509.84 | AF15: بدل اعتماد معلم أول أ ( 150 % ) | AG15: 125.835 | AH15: 125.83 | AI15: 4.194333333 | AJ15: 0 | AK15: 28 | AL15: 840 | AM15: 3523.24 | AN15: 3523.24 | AO15: بدل اعتماد معلم خبير ( 175 % ) | AP15: 146.8075 | AQ15: 146.8 | AR15: 4.893333333 | AS15: 0 | AT15: 44 | AU15: 1320 | AV15: 6459.2 | AW15: 6459.2 | AX15: حافز اداء معلم أول أ ( 25 % ) | AY15: 20.9725 | AZ15: 20.97 | BA15: 0.699 | BB15: 0 | BC15: 28 | BD15: 840 | BE15: 587.16 | BF15: 587.16 | BG15: حافز اداء معلم خبير ( 25 % ) | BH15: 20.9725 | BI15: 20.97 | BJ15: 0.699 | BK15: 0 | BL15: 44 | BM15: 1320 | BN15: 922.68 | BO15: 922.68 | BP15: 838.9 | BQ15: 838.9 | BR15: 2.330277778 | BS15: 0 | BT15: 72 | BU15: 2160 | BV15: 5033.4 | BW15: 5033.4 | BX15: 33.556 | BY15: 33.55 | BZ15: 1.118333333 | CA15: 0 | CB15: 14 | CC15: 420 | CD15: 469.7 | CE15: 469.7 | CF15: 21524.9 | CG15: فقط æÇÍÏ æÚÔÑæäó ÃáÝÇð æÎãÓãÇÆÉ æÃÑÈÚ æÚÔÑæäó جنيهÇð æ 90 قرش ÝÞØõ áÇ ÛíÑó | CH15: 27212122500099 | CI15: الشركة السعودية بسلام | CJ15: 9982.44 | CK15: 1509.84 | CM15: 2018-11-01 | CN15: 289 | CO15: 7
A16: 4 | B16: احمد سيد احمد محمود | C16: 27212122500100 | D16: محكمة القضاء الادارى باسيوط | E16: 104 | F16: محافظ اسيوط -مدير مديرية التربية والتعليم | G16: 25010لسنة32ق | H16: 2021-10-19 | I16: 2016-07-01 | J16: 2022-06-30 | K16: 19495.5 | L16: 562.69 | M16: 486.71 | N16: 75.98 | O16: 75.98 | P16: 37.99 | Q16: 37.99 | R16: 1.266333333 | S16: 0 | T16: 72 | U16: 2160 | V16: 2735.28 | W16: 2735.28 | X16: 18.995 | Y16: 18.99 | Z16: 0.633 | AA16: 0 | AB16: 72 | AC16: 2160 | AD16: 1367.28 | AE16: 1367.28 | AF16: بدل اعتماد معلم أول أ ( 150 % ) | AG16: 113.97 | AH16: 113.97 | AI16: 3.799 | AJ16: 0 | AK16: 28 | AL16: 840 | AM16: 3191.16 | AN16: 3191.16 | AO16: بدل اعتماد معلم خبير ( 175 % ) | AP16: 132.965 | AQ16: 132.96 | AR16: 4.432 | AS16: 0 | AT16: 44 | AU16: 1320 | AV16: 5850.24 | AW16: 5850.24 | AX16: حافز اداء معلم أول أ ( 25 % ) | AY16: 18.995 | AZ16: 18.99 | BA16: 0.633 | BB16: 0 | BC16: 28 | BD16: 840 | BE16: 531.72 | BF16: 531.72 | BG16: حافز اداء معلم خبير ( 25 % ) | BH16: 18.995 | BI16: 18.99 | BJ16: 0.633 | BK16: 0 | BL16: 44 | BM16: 1320 | BN16: 835.56 | BO16: 835.56 | BP16: 759.8 | BQ16: 759.8 | BR16: 2.110555556 | BS16: 0 | BT16: 72 | BU16: 2160 | BV16: 4558.8 | BW16: 4558.8 | BX16: 30.392 | BY16: 30.39 | BZ16: 1.013 | CA16: 0 | CB16: 14 | CC16: 420 | CD16: 425.46 | CE16: 425.46 | CF16: 19495.5 | CG16: فقط ÊÓÚÉ ÚÔÑ ÃáÝÇð æÃÑÈÚãÇÆÉ æÎãÓ æÊÓÚæäó جنيهÇð æ 50 قرش ÝÞØõ áÇ ÛíÑó | CH16: 27212122500100 | CI16: ديوان الادارة | CJ16: 9041.4 | CK16: 1367.28 | CM16: 2018-11-01 | CN16: 290 | CO16: 7
A17: 5 | B17: ايمان حسين محمد احمد | C17: 27212122500101 | D17: محكمة القضاء الادارى باسيوط | E17: 104 | F17: محافظ اسيوط -مدير مديرية التربية والتعليم | G17: 23209لسنة32ق | H17: 2021-10-19 | I17: 2016-07-01 | J17: 2022-06-30 | K17: 25687.86 | L17: 687.06 | M17: 591.15 | N17: 95.91 | O17: 95.91 | P17: 47.955 | Q17: 47.95 | R17: 1.598333333 | S17: 0 | T17: 72 | U17: 2160 | V17: 3452.4 | W17: 3452.4 | X17: 23.9775 | Y17: 23.97 | Z17: 0.799 | AA17: 0 | AB17: 72 | AC17: 2160 | AD17: 1725.84 | AE17: 1725.84 | AF17: بدل اعتماد معلم خبير ( 175 % ) | AG17: 167.8425 | AH17: 167.84 | AI17: 5.594666667 | AJ17: 0 | AK17: 55 | AL17: 1650 | AM17: 9231.2 | AN17: 9231.2 | AO17: بدل اعتماد كبير معلمين ( 200 % ) | AP17: 191.82 | AQ17: 191.82 | AR17: 6.394 | AS17: 0 | AT17: 17 | AU17: 510 | AV17: 3260.94 | AW17: 3260.94 | AX17: حافز اداء معلم خبير ( 25 % ) | AY17: 23.9775 | AZ17: 23.97 | BA17: 0.799 | BB17: 0 | BC17: 55 | BD17: 1650 | BE17: 1318.35 | BF17: 1318.35 | BG17: حافز اداء كبير معلمين ( 25 % ) | BH17: 23.9775 | BI17: 23.97 | BJ17: 0.799 | BK17: 0 | BL17: 17 | BM17: 510 | BN17: 407.49 | BO17: 407.49 | BP17: 959.1 | BQ17: 959.1 | BR17: 2.664166667 | BS17: 0 | BT17: 72 | BU17: 2160 | BV17: 5754.6 | BW17: 5754.6 | BX17: 38.364 | BY17: 38.36 | BZ17: 1.278666667 | CA17: 0 | CB17: 14 | CC17: 420 | CD17: 537.04 | CE17: 537.04 | CF17: 25687.86 | CG17: فقط ÎãÓÉ æÚÔÑæäó ÃáÝÇð æÓÊãÇÆÉ æÓÈÚ æËãÇäæäó جنيهÇð æ 86 قرش ÝÞØõ áÇ ÛíÑó | CH17: 27212122500101 | CI17: ديوان الادارة | CJ17: 12492.14 | CK17: 1725.84 | CM17: 2021-02-01 | CN17: 291 | CO17: 7
A18: 6 | B18: مصطفى هاشم عبد العال حافظ | C18: 27212122500102 | D18: محكمة القضاء الادارى باسيوط | E18: 104 | F18: محافظ اسيوط -مدير مديرية التربية والتعليم | G18: 23674لسنة32ق | H18: 2021-10-19 | I18: 2016-07-01 | J18: 2022-06-30 | K18: 32662.16 | L18: 857.2 | M18: 738.25 | N18: 118.95 | O18: 118.95 | P18: 59.475 | Q18: 59.47 | R18: 1.982333333 | S18: 0 | T18: 72 | U18: 2160 | V18: 4281.84 | W18: 4281.84 | X18: 29.7375 | Y18: 29.73 | Z18: 0.991 | AA18: 0 | AB18: 72 | AC18: 2160 | AD18: 2140.56 | AE18: 2140.56 | AF18: بدل اعتماد معلم خبير ( 175 % ) | AG18: 208.1625 | AH18: 208.16 | AI18: 6.938666667 | AJ18: 0 | AK18: 28 | AL18: 840 | AM18: 5828.48 | AN18: 5828.48 | AO18: بدل اعتماد كبير معلمين ( 200 % ) | AP18: 237.9 | AQ18: 237.9 | AR18: 7.93 | AS18: 0 | AT18: 44 | AU18: 1320 | AV18: 10467.6 | AW18: 10467.6 | AX18: حافز اداء معلم خبير ( 25 % ) | AY18: 29.7375 | AZ18: 29.73 | BA18: 0.991 | BB18: 0 | BC18: 28 | BD18: 840 | BE18: 832.44 | BF18: 832.44 | BG18: حافز اداء كبير معلمين ( 25 % ) | BH18: 29.7375 | BI18: 29.73 | BJ18: 0.991 | BK18: 0 | BL18: 44 | BM18: 1320 | BN18: 1308.12 | BO18: 1308.12 | BP18: 1189.5 | BQ18: 1189.5 | BR18: 3.304166667 | BS18: 0 | BT18: 72 | BU18: 2160 | BV18: 7137 | BW18: 7137 | BX18: 47.58 | BY18: 47.58 | BZ18: 1.586 | CA18: 0 | CB18: 14 | CC18: 420 | CD18: 666.12 | CE18: 666.12 | CF18: 32662.16 | CG18: فقط ÇËäÇäö æËáÇËæäó ÃáÝÇð æÓÊãÇÆÉ æÇËäÊÇäö æÓÊæäó جنيهÇð æ 16 قرش ÝÞØõ áÇ ÛíÑó | CH18: 27212122500102 | CI18: ديوان الادارة | CJ18: 16296.08 | CK18: 2140.56 | CM18: 2018-11-01 | CN18: 292 | CO18: 7
A19: 7 | B19: حمديه صالح عبدالفتاح جاد الرب | C19: 27212122500103 | D19: محكمة القضاء الادارى باسيوط | E19: 104 | F19: محافظ اسيوط - وكيل وزارة التربية والتعليم | G19: 25468لسنة32ق | H19: 2021-10-19 | I19: 2016-07-01 | J19: 2022-06-30 | K19: 31979 | L19: 834.13 | M19: 717.67 | N19: 116.46 | O19: 116.46 | P19: 58.23 | Q19: 58.23 | R19: 1.941 | S19: 0 | T19: 72 | U19: 2160 | V19: 4192.56 | W19: 4192.56 | X19: 29.115 | Y19: 29.11 | Z19: 0.9703333333 | AA19: 0 | AB19: 72 | AC19: 2160 | AD19: 2095.92 | AE19: 2095.92 | AF19: بدل اعتماد معلم خبير ( 175 % ) | AG19: 203.805 | AH19: 203.8 | AI19: 6.793333333 | AJ19: 0 | AK19: 28 | AL19: 840 | AM19: 5706.4 | AN19: 5706.4 | AO19: بدل اعتماد كبير معلمين ( 200 % ) | AP19: 232.92 | AQ19: 232.92 | AR19: 7.764 | AS19: 0 | AT19: 44 | AU19: 1320 | AV19: 10248.48 | AW19: 10248.48 | AX19: حافز اداء معلم خبير ( 25 % ) | AY19: 29.115 | AZ19: 29.11 | BA19: 0.9703333333 | BB19: 0 | BC19: 28 | BD19: 840 | BE19: 815.08 | BF19: 815.08 | BG19: حافز اداء كبير معلمين ( 25 % ) | BH19: 29.115 | BI19: 29.11 | BJ19: 0.9703333333 | BK19: 0 | BL19: 44 | BM19: 1320 | BN19: 1280.84 | BO19: 1280.84 | BP19: 1164.6 | BQ19: 1164.6 | BR19: 3.235 | BS19: 0 | BT19: 72 | BU19: 2160 | BV19: 6987.6 | BW19: 6987.6 | BX19: 46.584 | BY19: 46.58 | BZ19: 1.552666667 | CA19: 0 | CB19: 14 | CC19: 420 | CD19: 652.12 | CE19: 652.12 | CF19: 31979 | CG19: فقط æÇÍÏ æËáÇËæäó ÃáÝÇð æÊÓÚãÇÆÉ æÊÓÚ æÓÈÚæäó جنيهÇð ÝÞØõ áÇ ÛíÑó | CH19: 27212122500103 | CI19: ديوان الادارة | CJ19: 15954.88 | CK19: 2095.92 | CM19: 2018-11-01 | CN19: 293 | CO19: 7
A20: 8 | B20: ناديه صالح عبد الفتاح جاد الرب | C20: 27212122500104 | D20: محكمة القضاء الادارى باسيوط | E20: 104 | F20: محافظ اسيوط - وكيل وزارة التربية والتعليم | G20: 25469لسنة32ق | H20: 2021-10-19 | I20: 2016-07-01 | J20: 2022-06-30 | K20: 19495.5 | L20: 567.69 | M20: 491.71 | N20: 75.98 | O20: 75.98 | P20: 37.99 | Q20: 37.99 | R20: 1.266333333 | S20: 0 | T20: 72 | U20: 2160 | V20: 2735.28 | W20: 2735.28 | X20: 18.995 | Y20: 18.99 | Z20: 0.633 | AA20: 0 | AB20: 72 | AC20: 2160 | AD20: 1367.28 | AE20: 1367.28 | AF20: بدل اعتماد معلم أول أ ( 150 % ) | AG20: 113.97 | AH20: 113.97 | AI20: 3.799 | AJ20: 0 | AK20: 28 | AL20: 840 | AM20: 3191.16 | AN20: 3191.16 | AO20: بدل اعتماد معلم خبير ( 175 % ) | AP20: 132.965 | AQ20: 132.96 | AR20: 4.432 | AS20: 0 | AT20: 44 | AU20: 1320 | AV20: 5850.24 | AW20: 5850.24 | AX20: حافز اداء معلم أول أ ( 25 % ) | AY20: 18.995 | AZ20: 18.99 | BA20: 0.633 | BB20: 0 | BC20: 28 | BD20: 840 | BE20: 531.72 | BF20: 531.72 | BG20: حافز اداء معلم خبير ( 25 % ) | BH20: 18.995 | BI20: 18.99 | BJ20: 0.633 | BK20: 0 | BL20: 44 | BM20: 1320 | BN20: 835.56 | BO20: 835.56 | BP20: 759.8 | BQ20: 759.8 | BR20: 2.110555556 | BS20: 0 | BT20: 72 | BU20: 2160 | BV20: 4558.8 | BW20: 4558.8 | BX20: 30.392 | BY20: 30.39 | BZ20: 1.013 | CA20: 0 | CB20: 14 | CC20: 420 | CD20: 425.46 | CE20: 425.46 | CF20: 19495.5 | CG20: فقط ÊÓÚÉ ÚÔÑ ÃáÝÇð æÃÑÈÚãÇÆÉ æÎãÓ æÊÓÚæäó جنيهÇð æ 50 قرش ÝÞØõ áÇ ÛíÑó | CH20: 27212122500104 | CI20: ديوان الادارة | CJ20: 9041.4 | CK20: 1367.28 | CM20: 2018-11-01 | CN20: 294 | CO20: 7
A21: 9 | B21: احمد حسن مصطفى محمد | C21: 27212122500105 | D21: محكمة القضاء الادارى باسيوط | E21: 104 | F21: محافظ اسيوط - وكيل وزارة التربية والتعليم | G21: 7732لسنة32ق | H21: 2021-10-19 | I21: 2016-07-01 | J21: 2022-06-30 | K21: 13138.88 | L21: 410.46 | M21: 356.96 | N21: 53.5 | O21: 53.5 | P21: 26.75 | Q21: 26.75 | R21: 0.8916666667 | S21: 0 | T21: 72 | U21: 2160 | V21: 1926 | W21: 1926 | X21: 13.375 | Y21: 13.37 | Z21: 0.4456666667 | AA21: 0 | AB21: 72 | AC21: 2160 | AD21: 962.64 | AE21: 962.64 | AF21: بدل اعتماد معلم أول ( 125 % ) | AG21: 66.875 | AH21: 66.87 | AI21: 2.229 | AJ21: 0 | AK21: 28 | AL21: 840 | AM21: 1872.36 | AN21: 1872.36 | AO21: بدل اعتماد معلم أول أ ( 150 % ) | AP21: 80.25 | AQ21: 80.25 | AR21: 2.675 | AS21: 0 | AT21: 44 | AU21: 1320 | AV21: 3531 | AW21: 3531 | AX21: حافز اداء معلم أول ( 50 % ) | AY21: 26.75 | AZ21: 26.75 | BA21: 0.8916666667 | BB21: 0 | BC21: 28 | BD21: 840 | BE21: 749 | BF21: 749 | BG21: حافز اداء معلم أول أ ( 25 % ) | BH21: 13.375 | BI21: 13.37 | BJ21: 0.4456666667 | BK21: 0 | BL21: 44 | BM21: 1320 | BN21: 588.28 | BO21: 588.28 | BP21: 535 | BQ21: 535 | BR21: 1.486111111 | BS21: 0 | BT21: 72 | BU21: 2160 | BV21: 3210 | BW21: 3210 | BX21: 21.4 | BY21: 21.4 | BZ21: 0.7133333333 | CA21: 0 | CB21: 14 | CC21: 420 | CD21: 299.6 | CE21: 299.6 | CF21: 13138.88 | CG21: فقط ËáÇËÉ ÚÔÑ ÃáÝÇð æãÇÆÉ æËãÇä æËáÇËæäó جنيهÇð æ 88 قرش ÝÞØõ áÇ ÛíÑó | CH21: 27212122500105 | CI21: ديوان الادارة | CJ21: 5403.36 | CK21: 1337.28 | CM21: 2018-11-01 | CN21: 295 | CO21: 7
A22: 10 | B22: عصام عبد الرحيم على سيد | C22: 27212122500106 | D22: محكمة القضاء الادارى باسيوط | E22: 104 | F22: محافظ اسيوط - وكيل وزارة التربية والتعليم | G22: 7729لسنة32ق | H22: 2021-10-19 | I22: 2016-07-01 | J22: 2022-06-30 | K22: 36010.1 | L22: 938.48 | M22: 807.34 | N22: 131.14 | O22: 131.14 | P22: 65.57 | Q22: 65.57 | R22: 2.185666667 | S22: 0 | T22: 72 | U22: 2160 | V22: 4721.04 | W22: 4721.04 | X22: 32.785 | Y22: 32.78 | Z22: 1.092666667 | AA22: 0 | AB22: 72 | AC22: 2160 | AD22: 2360.16 | AE22: 2360.16 | AF22: بدل اعتماد معلم خبير ( 175 % ) | AG22: 229.495 | AH22: 229.49 | AI22: 7.649666667 | AJ22: 0 | AK22: 28 | AL22: 840 | AM22: 6425.72 | AN22: 6425.72 | AO22: بدل اعتماد كبير معلمين ( 200 % ) | AP22: 262.28 | AQ22: 262.28 | AR22: 8.742666667 | AS22: 0 | AT22: 44 | AU22: 1320 | AV22: 11540.32 | AW22: 11540.32 | AX22: حافز اداء معلم خبير ( 25 % ) | AY22: 32.785 | AZ22: 32.78 | BA22: 1.092666667 | BB22: 0 | BC22: 28 | BD22: 840 | BE22: 917.84 | BF22: 917.84 | BG22: حافز اداء كبير معلمين ( 25 % ) | BH22: 32.785 | BI22: 32.78 | BJ22: 1.092666667 | BK22: 0 | BL22: 44 | BM22: 1320 | BN22: 1442.32 | BO22: 1442.32 | BP22: 1311.4 | BQ22: 1311.4 | BR22: 3.642777778 | BS22: 0 | BT22: 72 | BU22: 2160 | BV22: 7868.4 | BW22: 7868.4 | BX22: 52.456 | BY22: 52.45 | BZ22: 1.748333333 | CA22: 0 | CB22: 14 | CC22: 420 | CD22: 734.3 | CE22: 734.3 | CF22: 36010.1 | CG22: فقط ÓÊÉ æËáÇËæäó ÃáÝÇð æÚÔÑ جنيهات æ 10 قروش ÝÞØõ áÇ ÛíÑó | CH22: 27212122500106 | CI22: ديوان الادارة | CJ22: 17966.04 | CK22: 2360.16 | CM22: 2018-11-01 | CN22: 296 | CO22: 7
A23: 11 | B23: رباب محمد شوقي ابراهيم | C23: 27212122500107 | D23: محكمة القضاء الادارى باسيوط | E23: 104 | F23: محافظ اسيوط - وكيل وزارة التربية والتعليم | G23: 23490لسنة32ق | H23: 2021-10-19 | I23: 2016-07-01 | J23: 2022-06-30 | K23: 19511.78 | L23: 587.63 | M23: 511.59 | N23: 76.04 | O23: 76.04 | P23: 38.02 | Q23: 38.02 | R23: 1.267333333 | S23: 0 | T23: 72 | U23: 2160 | V23: 2737.44 | W23: 2737.44 | X23: 19.01 | Y23: 19.01 | Z23: 0.6336666667 | AA23: 0 | AB23: 72 | AC23: 2160 | AD23: 1368.72 | AE23: 1368.72 | AF23: بدل اعتماد معلم أول أ ( 150 % ) | AG23: 114.06 | AH23: 114.06 | AI23: 3.802 | AJ23: 0 | AK23: 28 | AL23: 840 | AM23: 3193.68 | AN23: 3193.68 | AO23: بدل اعتماد معلم خبير ( 175 % ) | AP23: 133.07 | AQ23: 133.07 | AR23: 4.435666667 | AS23: 0 | AT23: 44 | AU23: 1320 | AV23: 5855.08 | AW23: 5855.08 | AX23: حافز اداء معلم أول أ ( 25 % ) | AY23: 19.01 | AZ23: 19.01 | BA23: 0.6336666667 | BB23: 0 | BC23: 28 | BD23: 840 | BE23: 532.28 | BF23: 532.28 | BG23: حافز اداء معلم خبير ( 25 % ) | BH23: 19.01 | BI23: 19.01 | BJ23: 0.6336666667 | BK23: 0 | BL23: 44 | BM23: 1320 | BN23: 836.44 | BO23: 836.44 | BP23: 760.4 | BQ23: 760.4 | BR23: 2.112222222 | BS23: 0 | BT23: 72 | BU23: 2160 | BV23: 4562.4 | BW23: 4562.4 | BX23: 30.416 | BY23: 30.41 | BZ23: 1.013666667 | CA23: 0 | CB23: 14 | CC23: 420 | CD23: 425.74 | CE23: 425.74 | CF23: 19511.78 | CG23: فقط ÊÓÚÉ ÚÔÑ ÃáÝÇð æÎãÓãÇÆÉ æÅÍÏóì ÚÔÑÉ جنيهÇð æ 78 قرش ÝÞØõ áÇ ÛíÑó | CH23: 27212122500107 | CI23: ديوان الادارة | CJ23: 9048.76 | CK23: 1368.72 | CM23: 2018-11-01 | CN23: 297 | CO23: 7
A24: 12 | B24: سمير خليل شحاته شحاته | C24: 27212122500108 | D24: محكمة القضاء الادارى باسيوط | E24: 104 | F24: محافظ اسيوط - وكيل وزارة التربية والتعليم | G24: 23853لسنة32ق | H24: 2021-10-19 | I24: 2016-07-01 | J24: 2022-06-30 | K24: 19495.5 | L24: 562.69 | M24: 486.71 | N24: 75.98 | O24: 75.98 | P24: 37.99 | Q24: 37.99 | R24: 1.266333333 | S24: 0 | T24: 72 | U24: 2160 | V24: 2735.28 | W24: 2735.28 | X24: 18.995 | Y24: 18.99 | Z24: 0.633 | AA24: 0 | AB24: 72 | AC24: 2160 | AD24: 1367.28 | AE24: 1367.28 | AF24: بدل اعتماد معلم أول أ ( 150 % ) | AG24: 113.97 | AH24: 113.97 | AI24: 3.799 | AJ24: 0 | AK24: 28 | AL24: 840 | AM24: 3191.16 | AN24: 3191.16 | AO24: بدل اعتماد معلم خبير ( 175 % ) | AP24: 132.965 | AQ24: 132.96 | AR24: 4.432 | AS24: 0 | AT24: 44 | AU24: 1320 | AV24: 5850.24 | AW24: 5850.24 | AX24: حافز اداء معلم أول أ ( 25 % ) | AY24: 18.995 | AZ24: 18.99 | BA24: 0.633 | BB24: 0 | BC24: 28 | BD24: 840 | BE24: 531.72 | BF24: 531.72 | BG24: حافز اداء معلم خبير ( 25 % ) | BH24: 18.995 | BI24: 18.99 | BJ24: 0.633 | BK24: 0 | BL24: 44 | BM24: 1320 | BN24: 835.56 | BO24: 835.56 | BP24: 759.8 | BQ24: 759.8 | BR24: 2.110555556 | BS24: 0 | BT24: 72 | BU24: 2160 | BV24: 4558.8 | BW24: 4558.8 | BX24: 30.392 | BY24: 30.39 | BZ24: 1.013 | CA24: 0 | CB24: 14 | CC24: 420 | CD24: 425.46 | CE24: 425.46 | CF24: 19495.5 | CG24: فقط ÊÓÚÉ ÚÔÑ ÃáÝÇð æÃÑÈÚãÇÆÉ æÎãÓ æÊÓÚæäó جنيهÇð æ 50 قرش ÝÞØõ áÇ ÛíÑó | CH24: 27212122500108 | CI24: ديوان الادارة | CJ24: 9041.4 | CK24: 1367.28 | CM24: 2018-11-01 | CN24: 298 | CO24: 7
A25: 13 | B25: سعاد محمد محمد احمد | C25: 27212122500109 | D25: محكمة القضاء الادارى باسيوط | E25: 104 | F25: محافظ اسيوط - وكيل وزارة التربية والتعليم | G25: 8578لسنة32ق | H25: 2021-10-19 | I25: 2016-07-01 | J25: 2022-06-30 | K25: 30091.82 | L25: 793.96 | M25: 684.37 | N25: 109.59 | O25: 109.59 | P25: 54.795 | Q25: 54.79 | R25: 1.826333333 | S25: 0 | T25: 72 | U25: 2160 | V25: 3944.88 | W25: 3944.88 | X25: 27.3975 | Y25: 27.39 | Z25: 0.913 | AA25: 0 | AB25: 72 | AC25: 2160 | AD25: 1972.08 | AE25: 1972.08 | AF25: بدل اعتماد معلم خبير ( 175 % ) | AG25: 191.7825 | AH25: 191.78 | AI25: 6.392666667 | AJ25: 0 | AK25: 28 | AL25: 840 | AM25: 5369.84 | AN25: 5369.84 | AO25: بدل اعتماد كبير معلمين ( 200 % ) | AP25: 219.18 | AQ25: 219.18 | AR25: 7.306 | AS25: 0 | AT25: 44 | AU25: 1320 | AV25: 9643.92 | AW25: 9643.92 | AX25: حافز اداء معلم خبير ( 25 % ) | AY25: 27.3975 | AZ25: 27.39 | BA25: 0.913 | BB25: 0 | BC25: 28 | BD25: 840 | BE25: 766.92 | BF25: 766.92 | BG25: حافز اداء كبير معلمين ( 25 % ) | BH25: 27.3975 | BI25: 27.39 | BJ25: 0.913 | BK25: 0 | BL25: 44 | BM25: 1320 | BN25: 1205.16 | BO25: 1205.16 | BP25: 1095.9 | BQ25: 1095.9 | BR25: 3.044166667 | BS25: 0 | BT25: 72 | BU25: 2160 | BV25: 6575.4 | BW25: 6575.4 | BX25: 43.836 | BY25: 43.83 | BZ25: 1.461 | CA25: 0 | CB25: 14 | CC25: 420 | CD25: 613.62 | CE25: 613.62 | CF25: 30091.82 | CG25: فقط ËáÇËæäó ÃáÝÇð æÅÍÏóì æÊÓÚæäó جنيهÇð æ 82 قرش ÝÞØõ áÇ ÛíÑó | CH25: 27212122500109 | CI25: ديوان الادارة | CJ25: 15013.76 | CK25: 1972.08 | CM25: 2018-11-01 | CN25: 299 | CO25: 7
A26: 14 | B26: مرفت زين العابدين احمد حسين | C26: 27212122500110 | D26: محكمة القضاء الادارى باسيوط | E26: 90 | F26: محافظ اسيوط - وكيل وزارة التربية والتعليم | G26: 13698لسنة32ق | H26: 2021-06-22 | I26: 2016-07-01 | J26: 2022-06-30 | K26: 32821.98 | L26: 858.09 | M26: 738.56 | N26: 119.53 | O26: 119.53 | P26: 59.765 | Q26: 59.76 | R26: 1.992 | S26: 0 | T26: 72 | U26: 2160 | V26: 4302.72 | W26: 4302.72 | X26: 29.8825 | Y26: 29.88 | Z26: 0.996 | AA26: 0 | AB26: 72 | AC26: 2160 | AD26: 2151.36 | AE26: 2151.36 | AF26: بدل اعتماد معلم خبير ( 175 % ) | AG26: 209.1775 | AH26: 209.17 | AI26: 6.972333333 | AJ26: 0 | AK26: 28 | AL26: 840 | AM26: 5856.76 | AN26: 5856.76 | AO26: بدل اعتماد كبير معلمين ( 200 % ) | AP26: 239.06 | AQ26: 239.06 | AR26: 7.968666667 | AS26: 0 | AT26: 44 | AU26: 1320 | AV26: 10518.64 | AW26: 10518.64 | AX26: حافز اداء معلم خبير ( 25 % ) | AY26: 29.8825 | AZ26: 29.88 | BA26: 0.996 | BB26: 0 | BC26: 28 | BD26: 840 | BE26: 836.64 | BF26: 836.64 | BG26: حافز اداء كبير معلمين ( 25 % ) | BH26: 29.8825 | BI26: 29.88 | BJ26: 0.996 | BK26: 0 | BL26: 44 | BM26: 1320 | BN26: 1314.72 | BO26: 1314.72 | BP26: 1195.3 | BQ26: 1195.3 | BR26: 3.320277778 | BS26: 0 | BT26: 72 | BU26: 2160 | BV26: 7171.8 | BW26: 7171.8 | BX26: 47.812 | BY26: 47.81 | BZ26: 1.593666667 | CA26: 0 | CB26: 14 | CC26: 420 | CD26: 669.34 | CE26: 669.34 | CF26: 32821.98 | CG26: فقط ÇËäÇäö æËáÇËæäó ÃáÝÇð æËãÇäãÇÆÉ æÅÍÏóì æÚÔÑæäó جنيهÇð æ 98 قرش ÝÞØõ áÇ ÛíÑó | CH26: 27212122500110 | CI26: ديوان الادارة | CJ26: 16375.4 | CK26: 2151.36 | CM26: 2018-11-01 | CN26: 300 | CO26: 7
A27: 15 | B27: ايمان صبحى فهمى واصف | C27: 27212122500111 | D27: محكمة القضاء الادارى باسيوط | E27: 90 | F27: محافظ اسيوط - وكيل وزارة التربية والتعليم | G27: 13699لسنة32ق | H27: 2021-06-22 | I27: 2016-07-01 | J27: 2022-06-30 | K27: 29098.32 | L27: 758.6 | M27: 652.63 | N27: 105.97 | O27: 105.97 | P27: 52.985 | Q27: 52.98 | R27: 1.766 | S27: 0 | T27: 72 | U27: 2160 | V27: 3814.56 | W27: 3814.56 | X27: 26.4925 | Y27: 26.49 | Z27: 0.883 | AA27: 0 | AB27: 72 | AC27: 2160 | AD27: 1907.28 | AE27: 1907.28 | AF27: بدل اعتماد معلم خبير ( 175 % ) | AG27: 185.4475 | AH27: 185.44 | AI27: 6.181333333 | AJ27: 0 | AK27: 28 | AL27: 840 | AM27: 5192.32 | AN27: 5192.32 | AO27: بدل اعتماد كبير معلمين ( 200 % ) | AP27: 211.94 | AQ27: 211.94 | AR27: 7.064666667 | AS27: 0 | AT27: 44 | AU27: 1320 | AV27: 9325.36 | AW27: 9325.36 | AX27: حافز اداء معلم خبير ( 25 % ) | AY27: 26.4925 | AZ27: 26.49 | BA27: 0.883 | BB27: 0 | BC27: 28 | BD27: 840 | BE27: 741.72 | BF27: 741.72 | BG27: حافز اداء كبير معلمين ( 25 % ) | BH27: 26.4925 | BI27: 26.49 | BJ27: 0.883 | BK27: 0 | BL27: 44 | BM27: 1320 | BN27: 1165.56 | BO27: 1165.56 | BP27: 1059.7 | BQ27: 1059.7 | BR27: 2.943611111 | BS27: 0 | BT27: 72 | BU27: 2160 | BV27: 6358.2 | BW27: 6358.2 | BX27: 42.388 | BY27: 42.38 | BZ27: 1.412666667 | CA27: 0 | CB27: 14 | CC27: 420 | CD27: 593.32 | CE27: 593.32 | CF27: 29098.32 | CG27: فقط ÊÓÚÉ æÚÔÑæäó ÃáÝÇð æËãÇä æÊÓÚæäó جنيهÇð æ 32 قرش ÝÞØõ áÇ ÛíÑó | CH27: 27212122500111 | CI27: ديوان الادارة | CJ27: 14517.68 | CK27: 1907.28 | CM27: 2018-11-01 | CN27: 301 | CO27: 7
A28: 16 | B28: امل عبد العاطى رمضان الصعيدى | C28: 27212122500112 | D28: محكمة القضاء الادارى باسيوط | E28: 90 | F28: محافظ اسيوط - وكيل وزارة التربية والتعليم ـ وزير التربية والتعليم | G28: 2759لسنة32ق | H28: 2021-06-22 | I28: 2016-07-01 | J28: 2022-06-30 | K28: 19382.64 | L28: 582.53 | M28: 503.61 | N28: 78.92 | O28: 78.92 | P28: 39.46 | Q28: 39.46 | R28: 1.315333333 | S28: 0 | T28: 72 | U28: 2160 | V28: 2841.12 | W28: 2841.12 | X28: 19.73 | Y28: 19.73 | Z28: 0.6576666667 | AA28: 0 | AB28: 72 | AC28: 2160 | AD28: 1420.56 | AE28: 1420.56 | AF28: بدل اعتماد معلم أول ( 125 % ) | AG28: 98.65 | AH28: 98.65 | AI28: 3.288333333 | AJ28: 0 | AK28: 28 | AL28: 840 | AM28: 2762.2 | AN28: 2762.2 | AO28: بدل اعتماد معلم أول أ ( 150 % ) | AP28: 118.38 | AQ28: 118.38 | AR28: 3.946 | AS28: 0 | AT28: 44 | AU28: 1320 | AV28: 5208.72 | AW28: 5208.72 | AX28: حافز اداء معلم أول ( 50 % ) | AY28: 39.46 | AZ28: 39.46 | BA28: 1.315333333 | BB28: 0 | BC28: 28 | BD28: 840 | BE28: 1104.88 | BF28: 1104.88 | BG28: حافز اداء معلم أول أ ( 25 % ) | BH28: 19.73 | BI28: 19.73 | BJ28: 0.6576666667 | BK28: 0 | BL28: 44 | BM28: 1320 | BN28: 868.12 | BO28: 868.12 | BP28: 789.2 | BQ28: 789.2 | BR28: 2.192222222 | BS28: 0 | BT28: 72 | BU28: 2160 | BV28: 4735.2 | BW28: 4735.2 | BX28: 31.568 | BY28: 31.56 | BZ28: 1.052 | CA28: 0 | CB28: 14 | CC28: 420 | CD28: 441.84 | CE28: 441.84 | CF28: 19382.64 | CG28: فقط ÊÓÚÉ ÚÔÑ ÃáÝÇð æËáÇËãÇÆÉ æÇËäÊÇäö æËãÇäæäó جنيهÇð æ 64 قرش ÝÞØõ áÇ ÛíÑó | CH28: 27212122500112 | CI28: بلال بن رباح | CJ28: 7970.92 | CK28: 1973 | CM28: 2018-11-01 | CN28: 302 | CO28: 7
A29: 17 | B29: محمد عبد الرحمن محمد الداخلى | C29: 27212122500113 | D29: محكمة القضاء الادارى باسيوط | E29: 90 | F29: محافظ اسيوط - وكيل وزارة التربية والتعليم ـ وزير التربية والتعليم | G29: 13855لسنة32ق | H29: 2021-06-22 | I29: 2016-07-01 | J29: 2022-06-30 | K29: 22369.42 | L29: 632.88 | M29: 545.69 | N29: 87.19 | O29: 87.18 | P29: 43.59 | Q29: 43.59 | R29: 1.453 | S29: 0 | T29: 72 | U29: 2160 | V29: 3138.48 | W29: 3138.48 | X29: 21.795 | Y29: 21.79 | Z29: 0.7263333333 | AA29: 0 | AB29: 72 | AC29: 2160 | AD29: 1568.88 | AE29: 1568.88 | AF29: بدل اعتماد معلم أول أ ( 150 % ) | AG29: 130.77 | AH29: 130.77 | AI29: 4.359 | AJ29: 0 | AK29: 28 | AL29: 840 | AM29: 3661.56 | AN29: 3661.56 | AO29: بدل اعتماد معلم خبير ( 175 % ) | AP29: 152.565 | AQ29: 152.56 | AR29: 5.085333333 | AS29: 0 | AT29: 44 | AU29: 1320 | AV29: 6712.64 | AW29: 6712.64 | AX29: حافز اداء معلم أول أ ( 25 % ) | AY29: 21.795 | AZ29: 21.79 | BA29: 0.7263333333 | BB29: 0 | BC29: 28 | BD29: 840 | BE29: 610.12 | BF29: 610.12 | BG29: حافز اداء معلم خبير ( 25 % ) | BH29: 21.795 | BI29: 21.79 | BJ29: 0.7263333333 | BK29: 0 | BL29: 44 | BM29: 1320 | BN29: 958.76 | BO29: 958.76 | BP29: 871.8 | BQ29: 871.8 | BR29: 2.421666667 | BS29: 0 | BT29: 72 | BU29: 2160 | BV29: 5230.8 | BW29: 5230.8 | BX29: 34.872 | BY29: 34.87 | BZ29: 1.162333333 | CA29: 0 | CB29: 14 | CC29: 420 | CD29: 488.18 | CE29: 488.18 | CF29: 22369.42 | CG29: فقط ÇËäÇäö æÚÔÑæäó ÃáÝÇð æËáÇËãÇÆÉ æÊÓÚ æÓÊæäó جنيهÇð æ 42 قرش ÝÞØõ áÇ ÛíÑó | CH29: 27212122500113 | CI29: ديوان الادارة | CJ29: 10374.2 | CK29: 1568.88 | CM29: 2018-11-01 | CN29: 303 | CO29: 7
A30: 18 | B30: زينب عباس محمد فرغلى | C30: 27212122500114 | D30: محكمة القضاء الادارى باسيوط | E30: 90 | F30: محافظ اسيوط - وكيل وزارة التربية والتعليم | G30: 12921لسنة32ق | H30: 2021-06-22 | I30: 2016-07-01 | J30: 2022-06-30 | K30: 30586.1 | L30: 806.3 | M30: 694.91 | N30: 111.39 | O30: 111.39 | P30: 55.695 | Q30: 55.69 | R30: 1.856333333 | S30: 0 | T30: 72 | U30: 2160 | V30: 4009.68 | W30: 4009.68 | X30: 27.8475 | Y30: 27.84 | Z30: 0.928 | AA30: 0 | AB30: 72 | AC30: 2160 | AD30: 2004.48 | AE30: 2004.48 | AF30: بدل اعتماد معلم خبير ( 175 % ) | AG30: 194.9325 | AH30: 194.93 | AI30: 6.497666667 | AJ30: 0 | AK30: 28 | AL30: 840 | AM30: 5458.04 | AN30: 5458.04 | AO30: بدل اعتماد كبير معلمين ( 200 % ) | AP30: 222.78 | AQ30: 222.78 | AR30: 7.426 | AS30: 0 | AT30: 44 | AU30: 1320 | AV30: 9802.32 | AW30: 9802.32 | AX30: حافز اداء معلم خبير ( 25 % ) | AY30: 27.8475 | AZ30: 27.84 | BA30: 0.928 | BB30: 0 | BC30: 28 | BD30: 840 | BE30: 779.52 | BF30: 779.52 | BG30: حافز اداء كبير معلمين ( 25 % ) | BH30: 27.8475 | BI30: 27.84 | BJ30: 0.928 | BK30: 0 | BL30: 44 | BM30: 1320 | BN30: 1224.96 | BO30: 1224.96 | BP30: 1113.9 | BQ30: 1113.9 | BR30: 3.094166667 | BS30: 0 | BT30: 72 | BU30: 2160 | BV30: 6683.4 | BW30: 6683.4 | BX30: 44.556 | BY30: 44.55 | BZ30: 1.485 | CA30: 0 | CB30: 14 | CC30: 420 | CD30: 623.7 | CE30: 623.7 | CF30: 30586.1 | CG30: فقط ËáÇËæäó ÃáÝÇð æÎãÓãÇÆÉ æÓÊ æËãÇäæäó جنيهÇð æ 10 قروش ÝÞØõ áÇ ÛíÑó | CH30: 27212122500114 | CI30: سميح السعيد الثانوية | CJ30: 15260.36 | CK30: 2004.48 | CM30: 2018-11-01 | CN30: 304 | CO30: 7
A31: 19 | B31: ولاء محمد على عبد الرحمن | C31: 27212122500115 | D31: محكمة القضاء الادارى باسيوط | E31: 90 | F31: محافظ اسيوط - وكيل وزارة التربية والتعليم | G31: 12852لسنة32ق | H31: 2021-06-22 | I31: 2016-07-01 | J31: 2022-06-30 | K31: 15655.2 | L31: 476.23 | M31: 412.48 | N31: 63.75 | O31: 63.75 | P31: 31.875 | Q31: 31.87 | R31: 1.062333333 | S31: 0 | T31: 72 | U31: 2160 | V31: 2294.64 | W31: 2294.64 | X31: 15.9375 | Y31: 15.93 | Z31: 0.531 | AA31: 0 | AB31: 72 | AC31: 2160 | AD31: 1146.96 | AE31: 1146.96 | AF31: بدل اعتماد معلم أول ( 125 % ) | AG31: 79.6875 | AH31: 79.68 | AI31: 2.656 | AJ31: 0 | AK31: 28 | AL31: 840 | AM31: 2231.04 | AN31: 2231.04 | AO31: بدل اعتماد معلم أول أ ( 150 % ) | AP31: 95.625 | AQ31: 95.62 | AR31: 3.187333333 | AS31: 0 | AT31: 44 | AU31: 1320 | AV31: 4207.28 | AW31: 4207.28 | AX31: حافز اداء معلم أول ( 50 % ) | AY31: 31.875 | AZ31: 31.87 | BA31: 1.062333333 | BB31: 0 | BC31: 28 | BD31: 840 | BE31: 892.36 | BF31: 892.36 | BG31: حافز اداء معلم أول أ ( 25 % ) | BH31: 15.9375 | BI31: 15.93 | BJ31: 0.531 | BK31: 0 | BL31: 44 | BM31: 1320 | BN31: 700.92 | BO31: 700.92 | BP31: 637.5 | BQ31: 637.5 | BR31: 1.770833333 | BS31: 0 | BT31: 72 | BU31: 2160 | BV31: 3825 | BW31: 3825 | BX31: 25.5 | BY31: 25.5 | BZ31: 0.85 | CA31: 0 | CB31: 14 | CC31: 420 | CD31: 357 | CE31: 357 | CF31: 15655.2 | CG31: فقط ÎãÓÉ ÚÔÑ ÃáÝÇð æÓÊãÇÆÉ æÎãÓ æÎãÓæäó جنيهÇð æ 20 قرش ÝÞØõ áÇ ÛíÑó | CH31: 27212122500115 | CI31: سميح السعيد الثانوية | CJ31: 6438.32 | CK31: 1593.28 | CM31: 2018-11-01 | CN31: 305 | CO31: 7
A32: 20 | B32: امانى محمد عز الدين سلامه | C32: 27212122500116 | D32: محكمة القضاء الادارى باسيوط | E32: 90 | F32: محافظ اسيوط - مديرمديرية التربية والتعليم | G32: 13839لسنة32ق | H32: 2021-06-22 | I32: 2016-07-01 | J32: 2022-06-30 | K32: 20331.96 | L32: 592.36 | M32: 510.98 | N32: 81.38 | O32: 81.38 | P32: 40.69 | Q32: 40.69 | R32: 1.356333333 | S32: 0 | T32: 72 | U32: 2160 | V32: 2929.68 | W32: 2929.68 | X32: 20.345 | Y32: 20.34 | Z32: 0.678 | AA32: 0 | AB32: 72 | AC32: 2160 | AD32: 1464.48 | AE32: 1464.48 | AF32: بدل اعتماد معلم أول أ ( 150 % ) | AG32: 122.07 | AH32: 122.07 | AI32: 4.069 | AJ32: 0 | AK32: 55 | AL32: 1650 | AM32: 6713.85 | AN32: 6713.85 | AO32: بدل اعتماد معلم خبير ( 175 % ) | AP32: 142.415 | AQ32: 142.41 | AR32: 4.747 | AS32: 0 | AT32: 17 | AU32: 510 | AV32: 2420.97 | AW32: 2420.97 | AX32: حافز اداء معلم أول أ ( 25 % ) | AY32: 20.345 | AZ32: 20.34 | BA32: 0.678 | BB32: 0 | BC32: 55 | BD32: 1650 | BE32: 1118.7 | BF32: 1118.7 | BG32: حافز اداء معلم خبير ( 25 % ) | BH32: 20.345 | BI32: 20.34 | BJ32: 0.678 | BK32: 0 | BL32: 17 | BM32: 510 | BN32: 345.78 | BO32: 345.78 | BP32: 813.8 | BQ32: 813.8 | BR32: 2.260555556 | BS32: 0 | BT32: 72 | BU32: 2160 | BV32: 4882.8 | BW32: 4882.8 | BX32: 32.552 | BY32: 32.55 | BZ32: 1.085 | CA32: 0 | CB32: 14 | CC32: 420 | CD32: 455.7 | CE32: 455.7 | CF32: 20331.96 | CG32: فقط ÚÔÑæäó ÃáÝÇð æËáÇËãÇÆÉ æÅÍÏóì æËáÇËæäó جنيهÇð æ 96 قرش ÝÞØõ áÇ ÛíÑó | CH32: 27212122500116 | CI32: عبد الله النديم الابتدائية | CJ32: 9134.82 | CK32: 1464.48 | CM32: 2021-02-01 | CN32: 306 | CO32: 7
A33: 21 | B33: هدى على عبد الحليم مفتاح | C33: 27212122500117 | D33: محكمة القضاء الادارى باسيوط | E33: 90 | F33: محافظ اسيوط - مديرمديرية التربية والتعليم | G33: 14092لسنة32ق | H33: 2021-06-22 | I33: 2016-07-01 | J33: 2022-06-30 | K33: 19913.48 | L33: 578.73 | M33: 501.12 | N33: 77.61 | O33: 77.61 | P33: 38.805 | Q33: 38.8 | R33: 1.293333333 | S33: 0 | T33: 72 | U33: 2160 | V33: 2793.6 | W33: 2793.6 | X33: 19.4025 | Y33: 19.4 | Z33: 0.6466666667 | AA33: 0 | AB33: 72 | AC33: 2160 | AD33: 1396.8 | AE33: 1396.8 | AF33: بدل اعتماد معلم أول أ ( 150 % ) | AG33: 116.415 | AH33: 116.41 | AI33: 3.880333333 | AJ33: 0 | AK33: 28 | AL33: 840 | AM33: 3259.48 | AN33: 3259.48 | AO33: بدل اعتماد معلم خبير ( 175 % ) | AP33: 135.8175 | AQ33: 135.81 | AR33: 4.527 | AS33: 0 | AT33: 44 | AU33: 1320 | AV33: 5975.64 | AW33: 5975.64 | AX33: حافز اداء معلم أول أ ( 25 % ) | AY33: 19.4025 | AZ33: 19.4 | BA33: 0.6466666667 | BB33: 0 | BC33: 28 | BD33: 840 | BE33: 543.2 | BF33: 543.2 | BG33: حافز اداء معلم خبير ( 25 % ) | BH33: 19.4025 | BI33: 19.4 | BJ33: 0.6466666667 | BK33: 0 | BL33: 44 | BM33: 1320 | BN33: 853.6 | BO33: 853.6 | BP33: 776.1 | BQ33: 776.1 | BR33: 2.155833333 | BS33: 0 | BT33: 72 | BU33: 2160 | BV33: 4656.6 | BW33: 4656.6 | BX33: 31.044 | BY33: 31.04 | BZ33: 1.034666667 | CA33: 0 | CB33: 14 | CC33: 420 | CD33: 434.56 | CE33: 434.56 | CF33: 19913.48 | CG33: فقط ÊÓÚÉ ÚÔÑ ÃáÝÇð æÊÓÚãÇÆÉ æËáÇË ÚÔÑÉ جنيهÇð æ 48 قرش ÝÞØõ áÇ ÛíÑó | CH33: 27212122500117 | CI33: ديوان الادارة | CJ33: 9235.12 | CK33: 1396.8 | CM33: 2018-11-01 | CN33: 307 | CO33: 7
A34: 22 | B34: سامح نحميا شنوده جبران | C34: 27212122500118 | D34: محكمة القضاء الادارى باسيوط | E34: 90 | F34: محافظ اسيوط - مديرمديرية التربية والتعليم | G34: 14086لسنة32ق | H34: 2021-06-22 | I34: 2016-07-01 | J34: 2022-06-30 | K34: 22369.42 | L34: 633.38 | M34: 546.19 | N34: 87.19 | O34: 87.18 | P34: 43.59 | Q34: 43.59 | R34: 1.453 | S34: 0 | T34: 72 | U34: 2160 | V34: 3138.48 | W34: 3138.48 | X34: 21.795 | Y34: 21.79 | Z34: 0.7263333333 | AA34: 0 | AB34: 72 | AC34: 2160 | AD34: 1568.88 | AE34: 1568.88 | AF34: بدل اعتماد معلم أول أ ( 150 % ) | AG34: 130.77 | AH34: 130.77 | AI34: 4.359 | AJ34: 0 | AK34: 28 | AL34: 840 | AM34: 3661.56 | AN34: 3661.56 | AO34: بدل اعتماد معلم خبير ( 175 % ) | AP34: 152.565 | AQ34: 152.56 | AR34: 5.085333333 | AS34: 0 | AT34: 44 | AU34: 1320 | AV34: 6712.64 | AW34: 6712.64 | AX34: حافز اداء معلم أول أ ( 25 % ) | AY34: 21.795 | AZ34: 21.79 | BA34: 0.7263333333 | BB34: 0 | BC34: 28 | BD34: 840 | BE34: 610.12 | BF34: 610.12 | BG34: حافز اداء معلم خبير ( 25 % ) | BH34: 21.795 | BI34: 21.79 | BJ34: 0.7263333333 | BK34: 0 | BL34: 44 | BM34: 1320 | BN34: 958.76 | BO34: 958.76 | BP34: 871.8 | BQ34: 871.8 | BR34: 2.421666667 | BS34: 0 | BT34: 72 | BU34: 2160 | BV34: 5230.8 | BW34: 5230.8 | BX34: 34.872 | BY34: 34.87 | BZ34: 1.162333333 | CA34: 0 | CB34: 14 | CC34: 420 | CD34: 488.18 | CE34: 488.18 | CF34: 22369.42 | CG34: فقط ÇËäÇäö æÚÔÑæäó ÃáÝÇð æËáÇËãÇÆÉ æÊÓÚ æÓÊæäó جنيهÇð æ 42 قرش ÝÞØõ áÇ ÛíÑó | CH34: 27212122500118 | CI34: ديوان الادارة | CJ34: 10374.2 | CK34: 1568.88 | CM34: 2018-11-01 | CN34: 308 | CO34: 7
A35: 23 | B35: عبد الناصر مختار محمد محمد | C35: 27212122500119 | D35: محكمة القضاء الادارى باسيوط | E35: 90 | F35: محافظ اسيوط - مديرمديرية التربية والتعليم باسيوط مدير ادارة اسيوط التعليمية | G35: 10176لسنة31ق | H35: 2021-04-20 | I35: 2016-07-01 | J35: 2022-06-30 | K35: 30996.82 | L35: 809.5 | M35: 696.62 | N35: 112.88 | O35: 112.88 | P35: 56.44 | Q35: 56.44 | R35: 1.881333333 | S35: 0 | T35: 72 | U35: 2160 | V35: 4063.68 | W35: 4063.68 | X35: 28.22 | Y35: 28.22 | Z35: 0.9406666667 | AA35: 0 | AB35: 72 | AC35: 2160 | AD35: 2031.84 | AE35: 2031.84 | AF35: بدل اعتماد معلم خبير ( 175 % ) | AG35: 197.54 | AH35: 197.54 | AI35: 6.584666667 | AJ35: 0 | AK35: 28 | AL35: 840 | AM35: 5531.12 | AN35: 5531.12 | AO35: بدل اعتماد كبير معلمين ( 200 % ) | AP35: 225.76 | AQ35: 225.76 | AR35: 7.525333333 | AS35: 0 | AT35: 44 | AU35: 1320 | AV35: 9933.44 | AW35: 9933.44 | AX35: حافز اداء معلم خبير ( 25 % ) | AY35: 28.22 | AZ35: 28.22 | BA35: 0.9406666667 | BB35: 0 | BC35: 28 | BD35: 840 | BE35: 790.16 | BF35: 790.16 | BG35: حافز اداء كبير معلمين ( 25 % ) | BH35: 28.22 | BI35: 28.22 | BJ35: 0.9406666667 | BK35: 0 | BL35: 44 | BM35: 1320 | BN35: 1241.68 | BO35: 1241.68 | BP35: 1128.8 | BQ35: 1128.8 | BR35: 3.135555556 | BS35: 0 | BT35: 72 | BU35: 2160 | BV35: 6772.8 | BW35: 6772.8 | BX35: 45.152 | BY35: 45.15 | BZ35: 1.505 | CA35: 0 | CB35: 14 | CC35: 420 | CD35: 632.1 | CE35: 632.1 | CF35: 30996.82 | CG35: فقط ËáÇËæäó ÃáÝÇð æÊÓÚãÇÆÉ æÓÊ æÊÓÚæäó جنيهÇð æ 82 قرش ÝÞØõ áÇ ÛíÑó | CH35: 27212122500119 | CI35: ديوان الادارة | CJ35: 15464.56 | CK35: 2031.84 | CM35: 2018-11-01 | CN35: 309 | CO35: 7
A36: 24 | B36: منى فرغلى عبد الحليم محمد | C36: 27212122500120 | D36: محكمة القضاء الادارى باسيوط | E36: 90 | F36: محافظ اسيوط - مديرمديرية التربية والتعليم باسيوط مدير ادارة اسيوط التعليمية | G36: 10177لسنة31ق | H36: 2021-04-20 | I36: 2016-07-01 | J36: 2022-06-30 | K36: 19522.1 | L36: 563.19 | M36: 487.11 | N36: 76.08 | O36: 76.08 | P36: 38.04 | Q36: 38.04 | R36: 1.268 | S36: 0 | T36: 72 | U36: 2160 | V36: 2738.88 | W36: 2738.88 | X36: 19.02 | Y36: 19.02 | Z36: 0.634 | AA36: 0 | AB36: 72 | AC36: 2160 | AD36: 1369.44 | AE36: 1369.44 | AF36: بدل اعتماد معلم أول أ ( 150 % ) | AG36: 114.12 | AH36: 114.12 | AI36: 3.804 | AJ36: 0 | AK36: 28 | AL36: 840 | AM36: 3195.36 | AN36: 3195.36 | AO36: بدل اعتماد معلم خبير ( 175 % ) | AP36: 133.14 | AQ36: 133.14 | AR36: 4.438 | AS36: 0 | AT36: 44 | AU36: 1320 | AV36: 5858.16 | AW36: 5858.16 | AX36: حافز اداء معلم أول أ ( 25 % ) | AY36: 19.02 | AZ36: 19.02 | BA36: 0.634 | BB36: 0 | BC36: 28 | BD36: 840 | BE36: 532.56 | BF36: 532.56 | BG36: حافز اداء معلم خبير ( 25 % ) | BH36: 19.02 | BI36: 19.02 | BJ36: 0.634 | BK36: 0 | BL36: 44 | BM36: 1320 | BN36: 836.88 | BO36: 836.88 | BP36: 760.8 | BQ36: 760.8 | BR36: 2.113333333 | BS36: 0 | BT36: 72 | BU36: 2160 | BV36: 4564.8 | BW36: 4564.8 | BX36: 30.432 | BY36: 30.43 | BZ36: 1.014333333 | CA36: 0 | CB36: 14 | CC36: 420 | CD36: 426.02 | CE36: 426.02 | CF36: 19522.1 | CG36: فقط ÊÓÚÉ ÚÔÑ ÃáÝÇð æÎãÓãÇÆÉ æÇËäÊÇäö æÚÔÑæäó جنيهÇð æ 10 قروش ÝÞØõ áÇ ÛíÑó | CH36: 27212122500120 | CI36: ديوان الادارة | CJ36: 9053.52 | CK36: 1369.44 | CM36: 2018-11-01 | CN36: 310 | CO36: 7
A37: 25 | B37: اميمه محمد حامد بكر | C37: 27212122500121 | D37: محكمة القضاء الادارى باسيوط | E37: 90 | F37: محافظ اسيوط - وكيل وزارة التربية والتعليم ـ وزير التربية والتعليم | G37: 13852لسنة32ق | H37: 2021-06-22 | I37: 2016-07-01 | J37: 2022-06-30 | K37: 25179.39 | L37: 676.07 | M37: 582.06 | N37: 94.01 | O37: 94.01 | P37: 47.005 | Q37: 47 | R37: 1.566666667 | S37: 0 | T37: 72 | U37: 2160 | V37: 3384 | W37: 3384 | X37: 23.5025 | Y37: 23.5 | Z37: 0.7833333333 | AA37: 0 | AB37: 72 | AC37: 2160 | AD37: 1692 | AE37: 1692 | AF37: بدل اعتماد معلم خبير ( 175 % ) | AG37: 164.5175 | AH37: 164.51 | AI37: 5.483666667 | AJ37: 0 | AK37: 55 | AL37: 1650 | AM37: 9048.05 | AN37: 9048.05 | AO37: بدل اعتماد كبير معلمين ( 200 % ) | AP37: 188.02 | AQ37: 188.02 | AR37: 6.267333333 | AS37: 0 | AT37: 17 | AU37: 510 | AV37: 3196.34 | AW37: 3196.34 | AX37: حافز اداء معلم خبير ( 25 % ) | AY37: 23.5025 | AZ37: 23.5 | BA37: 0.7833333333 | BB37: 0 | BC37: 55 | BD37: 1650 | BE37: 1292.5 | BF37: 1292.5 | BG37: حافز اداء كبير معلمين ( 25 % ) | BH37: 23.5025 | BI37: 23.5 | BJ37: 0.7833333333 | BK37: 0 | BL37: 17 | BM37: 510 | BN37: 399.5 | BO37: 399.5 | BP37: 940.1 | BQ37: 940.1 | BR37: 2.611388889 | BS37: 0 | BT37: 72 | BU37: 2160 | BV37: 5640.6 | BW37: 5640.6 | BX37: 37.604 | BY37: 37.6 | BZ37: 1.253333333 | CA37: 0 | CB37: 14 | CC37: 420 | CD37: 526.4 | CE37: 526.4 | CF37: 25179.39 | CG37: فقط ÎãÓÉ æÚÔÑæäó ÃáÝÇð æãÇÆÉ æÊÓÚ æÓÈÚæäó جنيهÇð æ 39 قرش ÝÞØõ áÇ ÛíÑó | CH37: 27212122500121 | CI37: ديوان الادارة | CJ37: 12244.39 | CK37: 1692 | CM37: 2021-02-01 | CN37: 311 | CO37: 7
A38: 26 | B38: مديحه على شاكر على | C38: 27212122500122 | D38: محكمة القضاء الادارى باسيوط | E38: 104 | F38: محافظ اسيوط - مديرمديرية التربية والتعليم | G38: 28190لسنة32ق | H38: 2021-12-21 | I38: 2016-09-01 | J38: 2022-06-30 | K38: 19115.62 | L38: 562.99 | M38: 487.01 | N38: 75.98 | O38: 75.98 | P38: 37.99 | Q38: 37.99 | R38: 1.266333333 | S38: 0 | T38: 70 | U38: 2100 | V38: 2659.3 | W38: 2659.3 | X38: 18.995 | Y38: 18.99 | Z38: 0.633 | AA38: 0 | AB38: 70 | AC38: 2100 | AD38: 1329.3 | AE38: 1329.3 | AF38: بدل اعتماد معلم أول أ ( 150 % ) | AG38: 113.97 | AH38: 113.97 | AI38: 3.799 | AJ38: 0 | AK38: 26 | AL38: 780 | AM38: 2963.22 | AN38: 2963.22 | AO38: بدل اعتماد معلم خبير ( 175 % ) | AP38: 132.965 | AQ38: 132.96 | AR38: 4.432 | AS38: 0 | AT38: 44 | AU38: 1320 | AV38: 5850.24 | AW38: 5850.24 | AX38: حافز اداء معلم أول أ ( 25 % ) | AY38: 18.995 | AZ38: 18.99 | BA38: 0.633 | BB38: 0 | BC38: 26 | BD38: 780 | BE38: 493.74 | BF38: 493.74 | BG38: حافز اداء معلم خبير ( 25 % ) | BH38: 18.995 | BI38: 18.99 | BJ38: 0.633 | BK38: 0 | BL38: 44 | BM38: 1320 | BN38: 835.56 | BO38: 835.56 | BP38: 759.8 | BQ38: 759.8 | BR38: 2.110555556 | BS38: 0 | BT38: 72 | BU38: 2160 | BV38: 4558.8 | BW38: 4558.8 | BX38: 30.392 | BY38: 30.39 | BZ38: 1.013 | CA38: 0 | CB38: 14 | CC38: 420 | CD38: 425.46 | CE38: 425.46 | CF38: 19115.62 | CG38: فقط ÊÓÚÉ ÚÔÑ ÃáÝÇð æãÇÆÉ æÎãÓ ÚÔÑÉ جنيهÇð æ 62 قرش ÝÞØõ áÇ ÛíÑó | CH38: 27212122500122 | CI38: ديوان الادارة | CJ38: 8813.46 | CK38: 1329.3 | CM38: 2018-11-01 | CN38: 312 | CO38: 7
A39: 27 | B39: خالد اسماعيل عثمان بديوى | C39: 27212122500123 | D39: محكمة القضاء الادارى باسيوط | E39: 104 | F39: محافظ اسيوط - وكيل وزارة التربية والتعليم | G39: 26337لسنة32ق | H39: 2021-12-21 | I39: 2016-08-01 | J39: 2022-06-30 | K39: 30127.62 | L39: 803.71 | M39: 692.88 | N39: 110.83 | O39: 110.83 | P39: 55.415 | Q39: 55.41 | R39: 1.847 | S39: 0 | T39: 71 | U39: 2130 | V39: 3934.11 | W39: 3934.11 | X39: 27.7075 | Y39: 27.7 | Z39: 0.9233333333 | AA39: 0 | AB39: 71 | AC39: 2130 | AD39: 1966.7 | AE39: 1966.7 | AF39: بدل اعتماد معلم خبير ( 175 % ) | AG39: 193.9525 | AH39: 193.95 | AI39: 6.465 | AJ39: 0 | AK39: 27 | AL39: 810 | AM39: 5236.65 | AN39: 5236.65 | AO39: بدل اعتماد كبير معلمين ( 200 % ) | AP39: 221.66 | AQ39: 221.66 | AR39: 7.388666667 | AS39: 0 | AT39: 44 | AU39: 1320 | AV39: 9753.04 | AW39: 9753.04 | AX39: حافز اداء معلم خبير ( 25 % ) | AY39: 27.7075 | AZ39: 27.7 | BA39: 0.9233333333 | BB39: 0 | BC39: 27 | BD39: 810 | BE39: 747.9 | BF39: 747.9 | BG39: حافز اداء كبير معلمين ( 25 % ) | BH39: 27.7075 | BI39: 27.7 | BJ39: 0.9233333333 | BK39: 0 | BL39: 44 | BM39: 1320 | BN39: 1218.8 | BO39: 1218.8 | BP39: 1108.3 | BQ39: 1108.3 | BR39: 3.078611111 | BS39: 0 | BT39: 72 | BU39: 2160 | BV39: 6649.8 | BW39: 6649.8 | BX39: 44.332 | BY39: 44.33 | BZ39: 1.477666667 | CA39: 0 | CB39: 14 | CC39: 420 | CD39: 620.62 | CE39: 620.62 | CF39: 30127.62 | CG39: فقط ËáÇËæäó ÃáÝÇð æãÇÆÉ æÓÈÚ æÚÔÑæäó جنيهÇð æ 62 قرش ÝÞØõ áÇ ÛíÑó | CH39: 27212122500123 | CI39: سميح السعيد الثانوية | CJ39: 14989.69 | CK39: 1966.7 | CM39: 2018-11-01 | CN39: 313 | CO39: 7
A40: 28 | B40: جيهان محمد احمد محمد | C40: 27212122500124 | D40: محكمة القضاء الادارى باسيوط | E40: 104 | F40: محافظ اسيوط - مديرمديرية التربية والتعليم | G40: 28399لسنة32ق | H40: 2021-12-21 | I40: 2016-09-01 | J40: 2022-06-30 | K40: 20018.54 | L40: 587.52 | M40: 507.95 | N40: 79.57 | O40: 79.57 | P40: 39.785 | Q40: 39.78 | R40: 1.326 | S40: 0 | T40: 70 | U40: 2100 | V40: 2784.6 | W40: 2784.6 | X40: 19.8925 | Y40: 19.89 | Z40: 0.663 | AA40: 0 | AB40: 70 | AC40: 2100 | AD40: 1392.3 | AE40: 1392.3 | AF40: بدل اعتماد معلم أول أ ( 150 % ) | AG40: 119.355 | AH40: 119.35 | AI40: 3.978333333 | AJ40: 0 | AK40: 26 | AL40: 780 | AM40: 3103.1 | AN40: 3103.1 | AO40: بدل اعتماد معلم خبير ( 175 % ) | AP40: 139.2475 | AQ40: 139.24 | AR40: 4.641333333 | AS40: 0 | AT40: 44 | AU40: 1320 | AV40: 6126.56 | AW40: 6126.56 | AX40: حافز اداء معلم أول أ ( 25 % ) | AY40: 19.8925 | AZ40: 19.89 | BA40: 0.663 | BB40: 0 | BC40: 26 | BD40: 780 | BE40: 517.14 | BF40: 517.14 | BG40: حافز اداء معلم خبير ( 25 % ) | BH40: 19.8925 | BI40: 19.89 | BJ40: 0.663 | BK40: 0 | BL40: 44 | BM40: 1320 | BN40: 875.16 | BO40: 875.16 | BP40: 795.7 | BQ40: 795.7 | BR40: 2.210277778 | BS40: 0 | BT40: 72 | BU40: 2160 | BV40: 4774.2 | BW40: 4774.2 | BX40: 31.828 | BY40: 31.82 | BZ40: 1.060666667 | CA40: 0 | CB40: 14 | CC40: 420 | CD40: 445.48 | CE40: 445.48 | CF40: 20018.54 | CG40: فقط ÚÔÑæäó ÃáÝÇð æËãÇä ÚÔÑÉ جنيهÇð æ 54 قرش ÝÞØõ áÇ ÛíÑó | CH40: 27212122500124 | CI40: ديوان الادارة | CJ40: 9229.66 | CK40: 1392.3 | CM40: 2018-11-01 | CN40: 314 | CO40: 7
A41: 29 | B41: عبد الله محمد عبد العزيز محمد | C41: 27212122500125 | D41: محكمة القضاء الادارى باسيوط | E41: 104 | F41: محافظ اسيوط - وكيل وزارة التربية والتعليم ـ وزير التربية والتعليم ـ وزير المالية | G41: 26619لسنة32ق | H41: 2021-12-21 | I41: 2016-08-01 | J41: 2022-06-30 | K41: 28111.04 | L41: 752.14 | M41: 648.73 | N41: 103.41 | O41: 103.41 | P41: 51.705 | Q41: 51.7 | R41: 1.723333333 | S41: 0 | T41: 71 | U41: 2130 | V41: 3670.7 | W41: 3670.7 | X41: 25.8525 | Y41: 25.85 | Z41: 0.8616666667 | AA41: 0 | AB41: 71 | AC41: 2130 | AD41: 1835.35 | AE41: 1835.35 | AF41: بدل اعتماد معلم خبير ( 175 % ) | AG41: 180.9675 | AH41: 180.96 | AI41: 6.032 | AJ41: 0 | AK41: 27 | AL41: 810 | AM41: 4885.92 | AN41: 4885.92 | AO41: بدل اعتماد كبير معلمين ( 200 % ) | AP41: 206.82 | AQ41: 206.82 | AR41: 6.894 | AS41: 0 | AT41: 44 | AU41: 1320 | AV41: 9100.08 | AW41: 9100.08 | AX41: حافز اداء معلم خبير ( 25 % ) | AY41: 25.8525 | AZ41: 25.85 | BA41: 0.8616666667 | BB41: 0 | BC41: 27 | BD41: 810 | BE41: 697.95 | BF41: 697.95 | BG41: حافز اداء كبير معلمين ( 25 % ) | BH41: 25.8525 | BI41: 25.85 | BJ41: 0.8616666667 | BK41: 0 | BL41: 44 | BM41: 1320 | BN41: 1137.4 | BO41: 1137.4 | BP41: 1034.1 | BQ41: 1034.1 | BR41: 2.8725 | BS41: 0 | BT41: 72 | BU41: 2160 | BV41: 6204.6 | BW41: 6204.6 | BX41: 41.364 | BY41: 41.36 | BZ41: 1.378666667 | CA41: 0 | CB41: 14 | CC41: 420 | CD41: 579.04 | CE41: 579.04 | CF41: 28111.04 | CG41: فقط ËãÇäíÉ æÚÔÑæäó ÃáÝÇð æãÇÆÉ æÅÍÏóì ÚÔÑÉ جنيهÇð æ 4 قروش ÝÞØõ áÇ ÛíÑó | CH41: 27212122500125 | CI41: ديوان الادارة | CJ41: 13986 | CK41: 1835.35 | CM41: 2018-11-01 | CN41: 315 | CO41: 7
A42: 30 | B42: محمد سيد عبد الحافظ احمد | C42: 27212122500126 | D42: محكمة القضاء الادارى باسيوط | E42: 90 | F42: محافظ اسيوط - وكيل وزارة التربية والتعليم | G42: 5916لسنة32ق | H42: 2021-08-24 | I42: 2016-07-01 | J42: 2022-06-30 | K42: 28433.32 | L42: 753.04 | M42: 649.49 | N42: 103.55 | O42: 103.55 | P42: 51.775 | Q42: 51.77 | R42: 1.725666667 | S42: 0 | T42: 72 | U42: 2160 | V42: 3727.44 | W42: 3727.44 | X42: 25.8875 | Y42: 25.88 | Z42: 0.8626666667 | AA42: 0 | AB42: 72 | AC42: 2160 | AD42: 1863.36 | AE42: 1863.36 | AF42: بدل اعتماد معلم خبير ( 175 % ) | AG42: 181.2125 | AH42: 181.21 | AI42: 6.040333333 | AJ42: 0 | AK42: 28 | AL42: 840 | AM42: 5073.88 | AN42: 5073.88 | AO42: بدل اعتماد كبير معلمين ( 200 % ) | AP42: 207.1 | AQ42: 207.1 | AR42: 6.903333333 | AS42: 0 | AT42: 44 | AU42: 1320 | AV42: 9112.4 | AW42: 9112.4 | AX42: حافز اداء معلم خبير ( 25 % ) | AY42: 25.8875 | AZ42: 25.88 | BA42: 0.8626666667 | BB42: 0 | BC42: 28 | BD42: 840 | BE42: 724.64 | BF42: 724.64 | BG42: حافز اداء كبير معلمين ( 25 % ) | BH42: 25.8875 | BI42: 25.88 | BJ42: 0.8626666667 | BK42: 0 | BL42: 44 | BM42: 1320 | BN42: 1138.72 | BO42: 1138.72 | BP42: 1035.5 | BQ42: 1035.5 | BR42: 2.876388889 | BS42: 0 | BT42: 72 | BU42: 2160 | BV42: 6213 | BW42: 6213 | BX42: 41.42 | BY42: 41.42 | BZ42: 1.380666667 | CA42: 0 | CB42: 14 | CC42: 420 | CD42: 579.88 | CE42: 579.88 | CF42: 28433.32 | CG42: فقط ËãÇäíÉ æÚÔÑæäó ÃáÝÇð æÃÑÈÚãÇÆÉ æËáÇË æËáÇËæäó جنيهÇð æ 32 قرش ÝÞØõ áÇ ÛíÑó | CH42: 27212122500126 | CI42: ديوان الادارة | CJ42: 14186.28 | CK42: 1863.36 | CM42: 2018-11-01 | CN42: 316 | CO42: 7
A43: 31 | B43: نفين نبيه ملك نصر | C43: 27212122500127 | D43: محكمة القضاء الادارى باسيوط | E43: 104 | F43: محافظ اسيوط - مديرمديرية التربية والتعليم | G43: 23210لسنة32ق | H43: 2021-10-19 | I43: 2016-07-01 | J43: 2022-06-30 | K43: 30634.32 | L43: 807.47 | M43: 695.91 | N43: 111.56 | O43: 111.56 | P43: 55.78 | Q43: 55.78 | R43: 1.859333333 | S43: 0 | T43: 72 | U43: 2160 | V43: 4016.16 | W43: 4016.16 | X43: 27.89 | Y43: 27.89 | Z43: 0.9296666667 | AA43: 0 | AB43: 72 | AC43: 2160 | AD43: 2008.08 | AE43: 2008.08 | AF43: بدل اعتماد معلم خبير ( 175 % ) | AG43: 195.23 | AH43: 195.23 | AI43: 6.507666667 | AJ43: 0 | AK43: 28 | AL43: 840 | AM43: 5466.44 | AN43: 5466.44 | AO43: بدل اعتماد كبير معلمين ( 200 % ) | AP43: 223.12 | AQ43: 223.12 | AR43: 7.437333333 | AS43: 0 | AT43: 44 | AU43: 1320 | AV43: 9817.28 | AW43: 9817.28 | AX43: حافز اداء معلم خبير ( 25 % ) | AY43: 27.89 | AZ43: 27.89 | BA43: 0.9296666667 | BB43: 0 | BC43: 28 | BD43: 840 | BE43: 780.92 | BF43: 780.92 | BG43: حافز اداء كبير معلمين ( 25 % ) | BH43: 27.89 | BI43: 27.89 | BJ43: 0.9296666667 | BK43: 0 | BL43: 44 | BM43: 1320 | BN43: 1227.16 | BO43: 1227.16 | BP43: 1115.6 | BQ43: 1115.6 | BR43: 3.098888889 | BS43: 0 | BT43: 72 | BU43: 2160 | BV43: 6693.6 | BW43: 6693.6 | BX43: 44.624 | BY43: 44.62 | BZ43: 1.487333333 | CA43: 0 | CB43: 14 | CC43: 420 | CD43: 624.68 | CE43: 624.68 | CF43: 30634.32 | CG43: فقط ËáÇËæäó ÃáÝÇð æÓÊãÇÆÉ æÃÑÈÚ æËáÇËæäó جنيهÇð æ 32 قرش ÝÞØõ áÇ ÛíÑó | CH43: 27212122500127 | CI43: دير درنكة الاعدادية | CJ43: 15283.72 | CK43: 2008.08 | CM43: 2018-11-01 | CN43: 317 | CO43: 7
A44: 32 | B44: هناء محفوظ صديق ساويرس | C44: 27212122500128 | D44: محكمة القضاء الادارى باسيوط | E44: 104 | F44: محافظ اسيوط - مديرمديرية التربية والتعليم | G44: 23766لسنة32ق | H44: 2021-10-19 | I44: 2016-07-01 | J44: 2022-06-30 | K44: 35076.46 | L44: 921.31 | M44: 793.57 | N44: 127.74 | O44: 127.74 | P44: 63.87 | Q44: 63.87 | R44: 2.129 | S44: 0 | T44: 72 | U44: 2160 | V44: 4598.64 | W44: 4598.64 | X44: 31.935 | Y44: 31.93 | Z44: 1.064333333 | AA44: 0 | AB44: 72 | AC44: 2160 | AD44: 2298.96 | AE44: 2298.96 | AF44: بدل اعتماد معلم خبير ( 175 % ) | AG44: 223.545 | AH44: 223.54 | AI44: 7.451333333 | AJ44: 0 | AK44: 28 | AL44: 840 | AM44: 6259.12 | AN44: 6259.12 | AO44: بدل اعتماد كبير معلمين ( 200 % ) | AP44: 255.48 | AQ44: 255.48 | AR44: 8.516 | AS44: 0 | AT44: 44 | AU44: 1320 | AV44: 11241.12 | AW44: 11241.12 | AX44: حافز اداء معلم خبير ( 25 % ) | AY44: 31.935 | AZ44: 31.93 | BA44: 1.064333333 | BB44: 0 | BC44: 28 | BD44: 840 | BE44: 894.04 | BF44: 894.04 | BG44: حافز اداء كبير معلمين ( 25 % ) | BH44: 31.935 | BI44: 31.93 | BJ44: 1.064333333 | BK44: 0 | BL44: 44 | BM44: 1320 | BN44: 1404.92 | BO44: 1404.92 | BP44: 1277.4 | BQ44: 1277.4 | BR44: 3.548333333 | BS44: 0 | BT44: 72 | BU44: 2160 | BV44: 7664.4 | BW44: 7664.4 | BX44: 51.096 | BY44: 51.09 | BZ44: 1.703 | CA44: 0 | CB44: 14 | CC44: 420 | CD44: 715.26 | CE44: 715.26 | CF44: 35076.46 | CG44: فقط ÎãÓÉ æËáÇËæäó ÃáÝÇð æÓÊ æÓÈÚæäó جنيهÇð æ 46 قرش ÝÞØõ áÇ ÛíÑó | CH44: 27212122500128 | CI44: دير درنكة الاعدادية | CJ44: 17500.24 | CK44: 2298.96 | CM44: 2018-11-01 | CN44: 318 | CO44: 7
A45: 33 | B45: منال عبد الرازق محمد مصطفى | C45: 27212122500129 | D45: محكمة القضاء الادارى باسيوط | E45: 104 | F45: وزير التربية والتعليم ـ محافظ اسيوط - وكيل وزارة التربية والتعليم | G45: 15879لسنة32ق | H45: 2021-11-23 | I45: 2016-07-01 | J45: 2022-06-30 | K45: 20419.26 | L45: 587.52 | M45: 507.94 | N45: 79.58 | O45: 79.58 | P45: 39.79 | Q45: 39.79 | R45: 1.326333333 | S45: 0 | T45: 72 | U45: 2160 | V45: 2864.88 | W45: 2864.88 | X45: 19.895 | Y45: 19.89 | Z45: 0.663 | AA45: 0 | AB45: 72 | AC45: 2160 | AD45: 1432.08 | AE45: 1432.08 | AF45: بدل اعتماد معلم أول أ ( 150 % ) | AG45: 119.37 | AH45: 119.37 | AI45: 3.979 | AJ45: 0 | AK45: 28 | AL45: 840 | AM45: 3342.36 | AN45: 3342.36 | AO45: بدل اعتماد معلم خبير ( 175 % ) | AP45: 139.265 | AQ45: 139.26 | AR45: 4.642 | AS45: 0 | AT45: 44 | AU45: 1320 | AV45: 6127.44 | AW45: 6127.44 | AX45: حافز اداء معلم أول أ ( 25 % ) | AY45: 19.895 | AZ45: 19.89 | BA45: 0.663 | BB45: 0 | BC45: 28 | BD45: 840 | BE45: 556.92 | BF45: 556.92 | BG45: حافز اداء معلم خبير ( 25 % ) | BH45: 19.895 | BI45: 19.89 | BJ45: 0.663 | BK45: 0 | BL45: 44 | BM45: 1320 | BN45: 875.16 | BO45: 875.16 | BP45: 795.8 | BQ45: 795.8 | BR45: 2.210555556 | BS45: 0 | BT45: 72 | BU45: 2160 | BV45: 4774.8 | BW45: 4774.8 | BX45: 31.832 | BY45: 31.83 | BZ45: 1.061 | CA45: 0 | CB45: 14 | CC45: 420 | CD45: 445.62 | CE45: 445.62 | CF45: 20419.26 | CG45: فقط ÚÔÑæäó ÃáÝÇð æÃÑÈÚãÇÆÉ æÊÓÚ ÚÔÑÉ جنيهÇð æ 26 قرش ÝÞØõ áÇ ÛíÑó | CH45: 27212122500129 | CI45: ديوان الادارة | CJ45: 9469.8 | CK45: 1432.08 | CM45: 2018-11-01 | CN45: 319 | CO45: 7
A46: 34 | B46: اسماعيل زين عمر خليل | C46: 27212122500130 | D46: محكمة القضاء الادارى باسيوط | E46: 104 | F46: وزير التربية والتعليم ـ محافظ اسيوط - وكيل وزارة التربية والتعليم | G46: 19185لسنة32ق | H46: 2022-01-18 | I46: 2016-07-01 | J46: 2022-06-30 | K46: 25747.26 | L46: 688.92 | M46: 592.79 | N46: 96.13 | O46: 96.13 | P46: 48.065 | Q46: 48.06 | R46: 1.602 | S46: 0 | T46: 72 | U46: 2160 | V46: 3460.32 | W46: 3460.32 | X46: 24.0325 | Y46: 24.03 | Z46: 0.801 | AA46: 0 | AB46: 72 | AC46: 2160 | AD46: 1730.16 | AE46: 1730.16 | AF46: بدل اعتماد معلم خبير ( 175 % ) | AG46: 168.2275 | AH46: 168.22 | AI46: 5.607333333 | AJ46: 0 | AK46: 55 | AL46: 1650 | AM46: 9252.1 | AN46: 9252.1 | AO46: بدل اعتماد كبير معلمين ( 200 % ) | AP46: 192.26 | AQ46: 192.26 | AR46: 6.408666667 | AS46: 0 | AT46: 17 | AU46: 510 | AV46: 3268.42 | AW46: 3268.42 | AX46: حافز اداء معلم خبير ( 25 % ) | AY46: 24.0325 | AZ46: 24.03 | BA46: 0.801 | BB46: 0 | BC46: 55 | BD46: 1650 | BE46: 1321.65 | BF46: 1321.65 | BG46: حافز اداء كبير معلمين ( 25 % ) | BH46: 24.0325 | BI46: 24.03 | BJ46: 0.801 | BK46: 0 | BL46: 17 | BM46: 510 | BN46: 408.51 | BO46: 408.51 | BP46: 961.3 | BQ46: 961.3 | BR46: 2.670277778 | BS46: 0 | BT46: 72 | BU46: 2160 | BV46: 5767.8 | BW46: 5767.8 | BX46: 38.452 | BY46: 38.45 | BZ46: 1.281666667 | CA46: 0 | CB46: 14 | CC46: 420 | CD46: 538.3 | CE46: 538.3 | CF46: 25747.26 | CG46: فقط ÎãÓÉ æÚÔÑæäó ÃáÝÇð æÓÈÚãÇÆÉ æÓÈÚ æÃÑÈÚæäó جنيهÇð æ 26 قرش ÝÞØõ áÇ ÛíÑó | CH46: 27212122500130 | CI46: المنشية بنات | CJ46: 12520.52 | CK46: 1730.16 | CM46: 2021-02-01 | CN46: 320 | CO46: 7
A47: 35 | B47: هبه محمد ثابت احمد | C47: 27212122500131 | D47: محكمة القضاء الادارى باسيوط | E47: 104 | F47: محافظ اسيوط - وكيل وزارة التربية والتعليم | G47: 23491لسنة32ق | H47: 2021-10-19 | I47: 2016-07-01 | J47: 2022-06-30 | K47: 14190.02 | L47: 433.82 | M47: 376.04 | N47: 57.78 | O47: 57.78 | P47: 28.89 | Q47: 28.89 | R47: 0.963 | S47: 0 | T47: 72 | U47: 2160 | V47: 2080.08 | W47: 2080.08 | X47: 14.445 | Y47: 14.44 | Z47: 0.4813333333 | AA47: 0 | AB47: 72 | AC47: 2160 | AD47: 1039.68 | AE47: 1039.68 | AF47: بدل اعتماد معلم أول ( 125 % ) | AG47: 72.225 | AH47: 72.22 | AI47: 2.407333333 | AJ47: 0 | AK47: 55 | AL47: 1650 | AM47: 3972.1 | AN47: 3972.1 | AO47: بدل اعتماد معلم أول أ ( 150 % ) | AP47: 86.67 | AQ47: 86.67 | AR47: 2.889 | AS47: 0 | AT47: 17 | AU47: 510 | AV47: 1473.39 | AW47: 1473.39 | AX47: حافز اداء معلم أول ( 50 % ) | AY47: 28.89 | AZ47: 28.89 | BA47: 0.963 | BB47: 0 | BC47: 55 | BD47: 1650 | BE47: 1588.95 | BF47: 1588.95 | BG47: حافز اداء معلم أول أ ( 25 % ) | BH47: 14.445 | BI47: 14.44 | BJ47: 0.4813333333 | BK47: 0 | BL47: 17 | BM47: 510 | BN47: 245.48 | BO47: 245.48 | BP47: 577.8 | BQ47: 577.8 | BR47: 1.605 | BS47: 0 | BT47: 72 | BU47: 2160 | BV47: 3466.8 | BW47: 3466.8 | BX47: 23.112 | BY47: 23.11 | BZ47: 0.7703333333 | CA47: 0 | CB47: 14 | CC47: 420 | CD47: 323.54 | CE47: 323.54 | CF47: 14190.02 | CG47: فقط ÃÑÈÚÉ ÚÔÑ ÃáÝÇð æãÇÆÉ æÊÓÚæäó جنيهÇð æ 2 قرش ÝÞØõ áÇ ÛíÑó | CH47: 27212122500131 | CI47: التحرير الرسمية للغات | CJ47: 5445.49 | CK47: 1834.43 | CM47: 2021-02-01 | CN47: 321 | CO47: 7
A48: 36 | B48: احمد كمال على حسانين | C48: 27212122500132 | D48: محكمة القضاء الادارى باسيوط | E48: 104 | F48: محافظ اسيوط - وكيل وزارة التربية والتعليم | G48: 27665لسنة32ق | H48: 2021-12-21 | I48: 2016-09-01 | J48: 2022-06-30 | K48: 19925.08 | L48: 592.36 | M48: 510.98 | N48: 81.38 | O48: 81.38 | P48: 40.69 | Q48: 40.69 | R48: 1.356333333 | S48: 0 | T48: 70 | U48: 2100 | V48: 2848.3 | W48: 2848.3 | X48: 20.345 | Y48: 20.34 | Z48: 0.678 | AA48: 0 | AB48: 70 | AC48: 2100 | AD48: 1423.8 | AE48: 1423.8 | AF48: بدل اعتماد معلم أول أ ( 150 % ) | AG48: 122.07 | AH48: 122.07 | AI48: 4.069 | AJ48: 0 | AK48: 53 | AL48: 1590 | AM48: 6469.71 | AN48: 6469.71 | AO48: بدل اعتماد معلم خبير ( 175 % ) | AP48: 142.415 | AQ48: 142.41 | AR48: 4.747 | AS48: 0 | AT48: 17 | AU48: 510 | AV48: 2420.97 | AW48: 2420.97 | AX48: حافز اداء معلم أول أ ( 25 % ) | AY48: 20.345 | AZ48: 20.34 | BA48: 0.678 | BB48: 0 | BC48: 53 | BD48: 1590 | BE48: 1078.02 | BF48: 1078.02 | BG48: حافز اداء معلم خبير ( 25 % ) | BH48: 20.345 | BI48: 20.34 | BJ48: 0.678 | BK48: 0 | BL48: 17 | BM48: 510 | BN48: 345.78 | BO48: 345.78 | BP48: 813.8 | BQ48: 813.8 | BR48: 2.260555556 | BS48: 0 | BT48: 72 | BU48: 2160 | BV48: 4882.8 | BW48: 4882.8 | BX48: 32.552 | BY48: 32.55 | BZ48: 1.085 | CA48: 0 | CB48: 14 | CC48: 420 | CD48: 455.7 | CE48: 455.7 | CF48: 19925.08 | CG48: فقط ÊÓÚÉ ÚÔÑ ÃáÝÇð æÊÓÚãÇÆÉ æÎãÓ æÚÔÑæäó جنيهÇð æ 8 قروش ÝÞØõ áÇ ÛíÑó | CH48: 27212122500132 | CI48: مجمعه ريفا | CJ48: 8890.68 | CK48: 1423.8 | CM48: 2021-02-01 | CN48: 322 | CO48: 7
A49: 37 | B49: عبد العزيز عبد الحكيم صديق عبد الرحمن | C49: 27212122500133 | D49: محكمة القضاء الادارى باسيوط | E49: 104 | F49: محافظ اسيوط - وكيل وزارة التربية والتعليم ـ وزير التربية والتعليم | G49: 26909لسنة32ق | H49: 2021-12-21 | I49: 2016-08-01 | J49: 2022-06-30 | K49: 15500 | L49: 475.25 | M49: 411.49 | N49: 63.76 | O49: 63.76 | P49: 31.88 | Q49: 31.88 | R49: 1.062666667 | S49: 0 | T49: 71 | U49: 2130 | V49: 2263.48 | W49: 2263.48 | X49: 15.94 | Y49: 15.94 | Z49: 0.5313333333 | AA49: 0 | AB49: 71 | AC49: 2130 | AD49: 1131.74 | AE49: 1131.74 | AF49: بدل اعتماد معلم أول ( 125 % ) | AG49: 79.7 | AH49: 79.7 | AI49: 2.656666667 | AJ49: 0 | AK49: 27 | AL49: 810 | AM49: 2151.9 | AN49: 2151.9 | AO49: بدل اعتماد معلم أول أ ( 150 % ) | AP49: 95.64 | AQ49: 95.64 | AR49: 3.188 | AS49: 0 | AT49: 44 | AU49: 1320 | AV49: 4208.16 | AW49: 4208.16 | AX49: حافز اداء معلم أول ( 50 % ) | AY49: 31.88 | AZ49: 31.88 | BA49: 1.062666667 | BB49: 0 | BC49: 27 | BD49: 810 | BE49: 860.76 | BF49: 860.76 | BG49: حافز اداء معلم أول أ ( 25 % ) | BH49: 15.94 | BI49: 15.94 | BJ49: 0.5313333333 | BK49: 0 | BL49: 44 | BM49: 1320 | BN49: 701.36 | BO49: 701.36 | BP49: 637.6 | BQ49: 637.6 | BR49: 1.771111111 | BS49: 0 | BT49: 72 | BU49: 2160 | BV49: 3825.6 | BW49: 3825.6 | BX49: 25.504 | BY49: 25.5 | BZ49: 0.85 | CA49: 0 | CB49: 14 | CC49: 420 | CD49: 357 | CE49: 357 | CF49: 15500 | CG49: فقط ÎãÓÉ ÚÔÑ ÃáÝÇð æÎãÓãÇÆÉ جنيه ÝÞØõ áÇ ÛíÑó | CH49: 27212122500133 | CI49: ريفا الابتدائية المشتركة | CJ49: 6360.06 | CK49: 1562.12 | CM49: 2018-11-01 | CN49: 323 | CO49: 7
A50: 38 | B50: عبد السلام عبد الرازق عبد العليم عبد الله | C50: 27212122500134 | D50: محكمة القضاء الادارى باسيوط | E50: 104 | F50: محافظ اسيوط - وكيل وزارة التربية والتعليم ـ وزير التربية والتعليم | G50: 26907لسنة32ق | H50: 2021-12-21 | I50: 2016-08-01 | J50: 2022-06-30 | K50: 19611.19 | L50: 576.18 | M50: 496.89 | N50: 79.29 | O50: 79.29 | P50: 39.645 | Q50: 39.64 | R50: 1.321333333 | S50: 0 | T50: 71 | U50: 2130 | V50: 2814.44 | W50: 2814.44 | X50: 19.8225 | Y50: 19.82 | Z50: 0.6606666667 | AA50: 0 | AB50: 71 | AC50: 2130 | AD50: 1407.22 | AE50: 1407.22 | AF50: بدل اعتماد معلم أول أ ( 150 % ) | AG50: 118.935 | AH50: 118.93 | AI50: 3.964333333 | AJ50: 0 | AK50: 54 | AL50: 1620 | AM50: 6422.22 | AN50: 6422.22 | AO50: بدل اعتماد معلم خبير ( 175 % ) | AP50: 138.7575 | AQ50: 138.75 | AR50: 4.625 | AS50: 0 | AT50: 17 | AU50: 510 | AV50: 2358.75 | AW50: 2358.75 | AX50: حافز اداء معلم أول أ ( 25 % ) | AY50: 19.8225 | AZ50: 19.82 | BA50: 0.6606666667 | BB50: 0 | BC50: 54 | BD50: 1620 | BE50: 1070.28 | BF50: 1070.28 | BG50: حافز اداء معلم خبير ( 25 % ) | BH50: 19.8225 | BI50: 19.82 | BJ50: 0.6606666667 | BK50: 0 | BL50: 17 | BM50: 510 | BN50: 336.94 | BO50: 336.94 | BP50: 792.9 | BQ50: 792.9 | BR50: 2.2025 | BS50: 0 | BT50: 72 | BU50: 2160 | BV50: 4757.4 | BW50: 4757.4 | BX50: 31.716 | BY50: 31.71 | BZ50: 1.057 | CA50: 0 | CB50: 14 | CC50: 420 | CD50: 443.94 | CE50: 443.94 | CF50: 19611.19 | CG50: فقط ÊÓÚÉ ÚÔÑ ÃáÝÇð æÓÊãÇÆÉ æÅÍÏóì ÚÔÑÉ جنيهÇð æ 19 قرش ÝÞØõ áÇ ÛíÑó | CH50: 27212122500134 | CI50: ريفا الابتدائية المشتركة | CJ50: 8780.97 | CK50: 1407.22 | CM50: 2021-02-01 | CN50: 324 | CO50: 7
A51: 39 | B51: زينب توفيق عبد السلام ابوزيد | C51: 27212122500135 | D51: محكمة القضاء الادارى باسيوط | E51: 104 | F51: محافظ اسيوط - وكيل وزارة التربية والتعليم | G51: 19966لسنة32ق | H51: 2022-01-18 | I51: 2016-07-01 | J51: 2022-06-30 | K51: 18054.79 | L51: 534.46 | M51: 462.19 | N51: 72.27 | O51: 72.27 | P51: 36.135 | Q51: 36.13 | R51: 1.204333333 | S51: 0 | T51: 72 | U51: 2160 | V51: 2601.36 | W51: 2601.36 | X51: 18.0675 | Y51: 18.06 | Z51: 0.602 | AA51: 0 | AB51: 72 | AC51: 2160 | AD51: 1300.32 | AE51: 1300.32 | AF51: بدل اعتماد معلم أول أ ( 150 % ) | AG51: 108.405 | AH51: 108.4 | AI51: 3.613333333 | AJ51: 0 | AK51: 55 | AL51: 1650 | AM51: 5962 | AN51: 5962 | AO51: بدل اعتماد معلم خبير ( 175 % ) | AP51: 126.4725 | AQ51: 126.47 | AR51: 4.215666667 | AS51: 0 | AT51: 17 | AU51: 510 | AV51: 2149.99 | AW51: 2149.99 | AX51: حافز اداء معلم أول أ ( 25 % ) | AY51: 18.0675 | AZ51: 18.06 | BA51: 0.602 | BB51: 0 | BC51: 55 | BD51: 1650 | BE51: 993.3 | BF51: 993.3 | BG51: حافز اداء معلم خبير ( 25 % ) | BH51: 18.0675 | BI51: 18.06 | BJ51: 0.602 | BK51: 0 | BL51: 17 | BM51: 510 | BN51: 307.02 | BO51: 307.02 | BP51: 722.7 | BQ51: 722.7 | BR51: 2.0075 | BS51: 0 | BT51: 72 | BU51: 2160 | BV51: 4336.2 | BW51: 4336.2 | BX51: 28.908 | BY51: 28.9 | BZ51: 0.9633333333 | CA51: 0 | CB51: 14 | CC51: 420 | CD51: 404.6 | CE51: 404.6 | CF51: 18054.79 | CG51: فقط ËãÇäÉ ÚÔÑ ÃáÝÇð æÃÑÈÚ æÎãÓæäó جنيهÇð æ 79 قرش ÝÞØõ áÇ ÛíÑó | CH51: 27212122500135 | CI51: الامام على بن ابى طالب باسيوط | CJ51: 8111.99 | CK51: 1300.32 | CM51: 2021-02-01 | CN51: 325 | CO51: 7
A52: 40 | B52: حسن احمد رجب عمر | C52: 27212122500136 | D52: محكمة القضاء الادارى باسيوط | E52: 104 | F52: محافظ اسيوط - وكيل وزارة التربية والتعليم | G52: 19349لسنة32ق | H52: 2022-01-18 | I52: 2016-07-01 | J52: 2022-06-30 | K52: 26080.74 | L52: 734.65 | M52: 633.01 | N52: 101.64 | O52: 101.64 | P52: 50.82 | Q52: 50.82 | R52: 1.694 | S52: 0 | T52: 72 | U52: 2160 | V52: 3659.04 | W52: 3659.04 | X52: 25.41 | Y52: 25.41 | Z52: 0.847 | AA52: 0 | AB52: 72 | AC52: 2160 | AD52: 1829.52 | AE52: 1829.52 | AF52: بدل اعتماد معلم أول أ ( 150 % ) | AG52: 152.46 | AH52: 152.46 | AI52: 5.082 | AJ52: 0 | AK52: 28 | AL52: 840 | AM52: 4268.88 | AN52: 4268.88 | AO52: بدل اعتماد معلم خبير ( 175 % ) | AP52: 177.87 | AQ52: 177.87 | AR52: 5.929 | AS52: 0 | AT52: 44 | AU52: 1320 | AV52: 7826.28 | AW52: 7826.28 | AX52: حافز اداء معلم أول أ ( 25 % ) | AY52: 25.41 | AZ52: 25.41 | BA52: 0.847 | BB52: 0 | BC52: 28 | BD52: 840 | BE52: 711.48 | BF52: 711.48 | BG52: حافز اداء معلم خبير ( 25 % ) | BH52: 25.41 | BI52: 25.41 | BJ52: 0.847 | BK52: 0 | BL52: 44 | BM52: 1320 | BN52: 1118.04 | BO52: 1118.04 | BP52: 1016.4 | BQ52: 1016.4 | BR52: 2.823333333 | BS52: 0 | BT52: 72 | BU52: 2160 | BV52: 6098.4 | BW52: 6098.4 | BX52: 40.656 | BY52: 40.65 | BZ52: 1.355 | CA52: 0 | CB52: 14 | CC52: 420 | CD52: 569.1 | CE52: 569.1 | CF52: 26080.74 | CG52: فقط ÓÊÉ æÚÔÑæäó ÃáÝÇð æËãÇäæäó جنيهÇð æ 74 قرش ÝÞØõ áÇ ÛíÑó | CH52: 27212122500136 | CI52: الامام على بن ابى طالب باسيوط | CJ52: 12095.16 | CK52: 1829.52 | CM52: 2018-11-01 | CN52: 326 | CO52: 7
A53: 41 | B53: نجلاء محمد خليفة مصطفى | C53: 27212122500137 | D53: محكمة القضاء الادارى باسيوط | E53: 104 | F53: محافظ اسيوط - وكيل وزارة التربية والتعليم | G53: 19342لسنة32ق | H53: 2022-01-18 | I53: 2016-07-01 | J53: 2022-06-30 | K53: 13855.92 | L53: 427.26 | M53: 370.84 | N53: 56.42 | O53: 56.42 | P53: 28.21 | Q53: 28.21 | R53: 0.9403333333 | S53: 0 | T53: 72 | U53: 2160 | V53: 2031.12 | W53: 2031.12 | X53: 14.105 | Y53: 14.1 | Z53: 0.47 | AA53: 0 | AB53: 72 | AC53: 2160 | AD53: 1015.2 | AE53: 1015.2 | AF53: بدل اعتماد معلم أول ( 125 % ) | AG53: 70.525 | AH53: 70.52 | AI53: 2.350666667 | AJ53: 0 | AK53: 28 | AL53: 840 | AM53: 1974.56 | AN53: 1974.56 | AO53: بدل اعتماد معلم أول أ ( 150 % ) | AP53: 84.63 | AQ53: 84.63 | AR53: 2.821 | AS53: 0 | AT53: 44 | AU53: 1320 | AV53: 3723.72 | AW53: 3723.72 | AX53: حافز اداء معلم أول ( 50 % ) | AY53: 28.21 | AZ53: 28.21 | BA53: 0.9403333333 | BB53: 0 | BC53: 28 | BD53: 840 | BE53: 789.88 | BF53: 789.88 | BG53: حافز اداء معلم أول أ ( 25 % ) | BH53: 14.105 | BI53: 14.1 | BJ53: 0.47 | BK53: 0 | BL53: 44 | BM53: 1320 | BN53: 620.4 | BO53: 620.4 | BP53: 564.2 | BQ53: 564.2 | BR53: 1.567222222 | BS53: 0 | BT53: 72 | BU53: 2160 | BV53: 3385.2 | BW53: 3385.2 | BX53: 22.568 | BY53: 22.56 | BZ53: 0.752 | CA53: 0 | CB53: 14 | CC53: 420 | CD53: 315.84 | CE53: 315.84 | CF53: 13855.92 | CG53: فقط ËáÇËÉ ÚÔÑ ÃáÝÇð æËãÇäãÇÆÉ æÎãÓ æÎãÓæäó جنيهÇð æ 92 قرش ÝÞØõ áÇ ÛíÑó | CH53: 27212122500137 | CI53: الامام على بن ابى طالب باسيوط | CJ53: 5698.28 | CK53: 1410.28 | CM53: 2018-11-01 | CN53: 327 | CO53: 7
A54: 42 | B54: امجد انيس نبيه جرجس | C54: 27212122500138 | D54: محكمة القضاء الادارى باسيوط | E54: 104 | F54: محافظ اسيوط - وكيل وزارة التربية والتعليم | G54: 19348لسنة32ق | H54: 2022-01-18 | I54: 2016-07-01 | J54: 2022-06-30 | K54: 19487.08 | L54: 562.45 | M54: 486.5 | N54: 75.95 | O54: 75.95 | P54: 37.975 | Q54: 37.97 | R54: 1.265666667 | S54: 0 | T54: 72 | U54: 2160 | V54: 2733.84 | W54: 2733.84 | X54: 18.9875 | Y54: 18.98 | Z54: 0.6326666667 | AA54: 0 | AB54: 72 | AC54: 2160 | AD54: 1366.56 | AE54: 1366.56 | AF54: بدل اعتماد معلم أول أ ( 150 % ) | AG54: 113.925 | AH54: 113.92 | AI54: 3.797333333 | AJ54: 0 | AK54: 28 | AL54: 840 | AM54: 3189.76 | AN54: 3189.76 | AO54: بدل اعتماد معلم خبير ( 175 % ) | AP54: 132.9125 | AQ54: 132.91 | AR54: 4.430333333 | AS54: 0 | AT54: 44 | AU54: 1320 | AV54: 5848.04 | AW54: 5848.04 | AX54: حافز اداء معلم أول أ ( 25 % ) | AY54: 18.9875 | AZ54: 18.98 | BA54: 0.6326666667 | BB54: 0 | BC54: 28 | BD54: 840 | BE54: 531.44 | BF54: 531.44 | BG54: حافز اداء معلم خبير ( 25 % ) | BH54: 18.9875 | BI54: 18.98 | BJ54: 0.6326666667 | BK54: 0 | BL54: 44 | BM54: 1320 | BN54: 835.12 | BO54: 835.12 | BP54: 759.5 | BQ54: 759.5 | BR54: 2.109722222 | BS54: 0 | BT54: 72 | BU54: 2160 | BV54: 4557 | BW54: 4557 | BX54: 30.38 | BY54: 30.38 | BZ54: 1.012666667 | CA54: 0 | CB54: 14 | CC54: 420 | CD54: 425.32 | CE54: 425.32 | CF54: 19487.08 | CG54: فقط ÊÓÚÉ ÚÔÑ ÃáÝÇð æÃÑÈÚãÇÆÉ æÓÈÚ æËãÇäæäó جنيهÇð æ 8 قروش ÝÞØõ áÇ ÛíÑó | CH54: 27212122500138 | CI54: الامام على بن ابى طالب باسيوط | CJ54: 9037.8 | CK54: 1366.56 | CM54: 2018-11-01 | CN54: 328 | CO54: 7
A55: 43 | B55: محمد احمد موسى احمد | C55: 27212122500139 | D55: محكمة القضاء الادارى باسيوط | E55: 90 | F55: محافظ اسيوط -مدير مديرية التربية والتعليم ـ مدير ادارة اسيوط التعليمية | G55: 7215لسنة32ق | H55: 2021-09-21 | I55: 2016-07-01 | J55: 2022-06-30 | K55: 23432.6 | L55: 669.49 | M55: 578.17 | N55: 91.32 | O55: 91.32 | P55: 45.66 | Q55: 45.66 | R55: 1.522 | S55: 0 | T55: 72 | U55: 2160 | V55: 3287.52 | W55: 3287.52 | X55: 22.83 | Y55: 22.83 | Z55: 0.761 | AA55: 0 | AB55: 72 | AC55: 2160 | AD55: 1643.76 | AE55: 1643.76 | AF55: بدل اعتماد معلم أول أ ( 150 % ) | AG55: 136.98 | AH55: 136.98 | AI55: 4.566 | AJ55: 0 | AK55: 28 | AL55: 840 | AM55: 3835.44 | AN55: 3835.44 | AO55: بدل اعتماد معلم خبير ( 175 % ) | AP55: 159.81 | AQ55: 159.81 | AR55: 5.327 | AS55: 0 | AT55: 44 | AU55: 1320 | AV55: 7031.64 | AW55: 7031.64 | AX55: حافز اداء معلم أول أ ( 25 % ) | AY55: 22.83 | AZ55: 22.83 | BA55: 0.761 | BB55: 0 | BC55: 28 | BD55: 840 | BE55: 639.24 | BF55: 639.24 | BG55: حافز اداء معلم خبير ( 25 % ) | BH55: 22.83 | BI55: 22.83 | BJ55: 0.761 | BK55: 0 | BL55: 44 | BM55: 1320 | BN55: 1004.52 | BO55: 1004.52 | BP55: 913.2 | BQ55: 913.2 | BR55: 2.536666667 | BS55: 0 | BT55: 72 | BU55: 2160 | BV55: 5479.2 | BW55: 5479.2 | BX55: 36.528 | BY55: 36.52 | BZ55: 1.217333333 | CA55: 0 | CB55: 14 | CC55: 420 | CD55: 511.28 | CE55: 511.28 | CF55: 23432.6 | CG55: فقط ËáÇËÉ æÚÔÑæäó ÃáÝÇð æÃÑÈÚãÇÆÉ æÇËäÊÇäö æËáÇËæäó جنيهÇð æ 60 قرش ÝÞØõ áÇ ÛíÑó | CH55: 27212122500139 | CI55: ديوان الادارة | CJ55: 10867.08 | CK55: 1643.76 | CM55: 2018-11-01 | CN55: 329 | CO55: 7
A56: 44 | B56: سيد احمد موسى احمد | C56: 27212122500140 | D56: محكمة القضاء الادارى باسيوط | E56: 90 | F56: محافظ اسيوط -مدير مديرية التربية والتعليم ـ مدير ادارة اسيوط التعليمية | G56: 7231لسنة32ق | H56: 2021-09-21 | I56: 2016-07-01 | J56: 2022-06-30 | K56: 31050.69 | L56: 826.61 | M56: 710.68 | N56: 115.93 | O56: 115.93 | P56: 57.965 | Q56: 57.96 | R56: 1.932 | S56: 0 | T56: 72 | U56: 2160 | V56: 4173.12 | W56: 4173.12 | X56: 28.9825 | Y56: 28.98 | Z56: 0.966 | AA56: 0 | AB56: 72 | AC56: 2160 | AD56: 2086.56 | AE56: 2086.56 | AF56: بدل اعتماد معلم خبير ( 175 % ) | AG56: 202.8775 | AH56: 202.87 | AI56: 6.762333333 | AJ56: 0 | AK56: 55 | AL56: 1650 | AM56: 11157.85 | AN56: 11157.85 | AO56: بدل اعتماد كبير معلمين ( 200 % ) | AP56: 231.86 | AQ56: 231.86 | AR56: 7.728666667 | AS56: 0 | AT56: 17 | AU56: 510 | AV56: 3941.62 | AW56: 3941.62 | AX56: حافز اداء معلم خبير ( 25 % ) | AY56: 28.9825 | AZ56: 28.98 | BA56: 0.966 | BB56: 0 | BC56: 55 | BD56: 1650 | BE56: 1593.9 | BF56: 1593.9 | BG56: حافز اداء كبير معلمين ( 25 % ) | BH56: 28.9825 | BI56: 28.98 | BJ56: 0.966 | BK56: 0 | BL56: 17 | BM56: 510 | BN56: 492.66 | BO56: 492.66 | BP56: 1159.3 | BQ56: 1159.3 | BR56: 3.220277778 | BS56: 0 | BT56: 72 | BU56: 2160 | BV56: 6955.8 | BW56: 6955.8 | BX56: 46.372 | BY56: 46.37 | BZ56: 1.545666667 | CA56: 0 | CB56: 14 | CC56: 420 | CD56: 649.18 | CE56: 649.18 | CF56: 31050.69 | CG56: فقط æÇÍÏ æËáÇËæäó ÃáÝÇð æÎãÓæäó جنيهÇð æ 69 قرش ÝÞØõ áÇ ÛíÑó | CH56: 27212122500140 | CI56: ديوان الادارة | CJ56: 15099.47 | CK56: 2086.56 | CM56: 2021-02-01 | CN56: 330 | CO56: 7
A57: 45 | B57: حنان مراد وهيب نصر الله | C57: 27212122500141 | D57: محكمة القضاء الادارى باسيوط | E57: 90 | F57: محافظ اسيوط - وكيل وزارة التربية والتعليم | G57: 13317لسنة32ق | H57: 2021-06-22 | I57: 2016-07-01 | J57: 2022-06-30 | K57: 26527.78 | L57: 711.17 | M57: 612.13 | N57: 99.04 | O57: 99.04 | P57: 49.52 | Q57: 49.52 | R57: 1.650666667 | S57: 0 | T57: 72 | U57: 2160 | V57: 3565.44 | W57: 3565.44 | X57: 24.76 | Y57: 24.76 | Z57: 0.8253333333 | AA57: 0 | AB57: 72 | AC57: 2160 | AD57: 1782.72 | AE57: 1782.72 | AF57: بدل اعتماد معلم خبير ( 175 % ) | AG57: 173.32 | AH57: 173.32 | AI57: 5.777333333 | AJ57: 0 | AK57: 55 | AL57: 1650 | AM57: 9532.6 | AN57: 9532.6 | AO57: بدل اعتماد كبير معلمين ( 200 % ) | AP57: 198.08 | AQ57: 198.08 | AR57: 6.602666667 | AS57: 0 | AT57: 17 | AU57: 510 | AV57: 3367.36 | AW57: 3367.36 | AX57: حافز اداء معلم خبير ( 25 % ) | AY57: 24.76 | AZ57: 24.76 | BA57: 0.8253333333 | BB57: 0 | BC57: 55 | BD57: 1650 | BE57: 1361.8 | BF57: 1361.8 | BG57: حافز اداء كبير معلمين ( 25 % ) | BH57: 24.76 | BI57: 24.76 | BJ57: 0.8253333333 | BK57: 0 | BL57: 17 | BM57: 510 | BN57: 420.92 | BO57: 420.92 | BP57: 990.4 | BQ57: 990.4 | BR57: 2.751111111 | BS57: 0 | BT57: 72 | BU57: 2160 | BV57: 5942.4 | BW57: 5942.4 | BX57: 39.616 | BY57: 39.61 | BZ57: 1.320333333 | CA57: 0 | CB57: 14 | CC57: 420 | CD57: 554.54 | CE57: 554.54 | CF57: 26527.78 | CG57: فقط ÓÊÉ æÚÔÑæäó ÃáÝÇð æÎãÓãÇÆÉ æÓÈÚ æÚÔÑæäó جنيهÇð æ 78 قرش ÝÞØõ áÇ ÛíÑó | CH57: 27212122500141 | CI57: طه حسين الابتدائية | CJ57: 12899.96 | CK57: 1782.72 | CM57: 2021-02-01 | CN57: 331 | CO57: 7

Sheet ورقة2
A1: بدل اعتماد معلم ( 100 % ) | B1: حافز اداء معلم ( 75 % )
A2: بدل اعتماد معلم أول ( 125 % ) | B2: حافز اداء معلم أول ( 50 % )
A3: بدل اعتماد معلم أول أ ( 150 % ) | B3: حافز اداء معلم أول أ ( 25 % )
A4: بدل اعتماد معلم خبير ( 175 % ) | B4: حافز اداء معلم خبير ( 25 % )
A5: بدل اعتماد كبير معلمين ( 200 % ) | B5: حافز اداء كبير معلمين ( 25 % )

Sheet ورقة3
T2: 27103272500083
T3: 27212122500097
B5: السيد الاستاذ / مدير مديرية التنظيم والادارة بأسيوط ( ادارة التدريب والتنظيم )
C6: تحية طيبة وبعد
B7: وردت الينا الدعوى رقم | C7: 13317لسنة32ق | D7: والمقامة من السيد /
B8: بمدرسة / | E8: رقم قومى /
B9: ضد /
B10: بشان صرف الحوافز والمكافات ومقابل الجهود غير العادية وجميع المزايا النقدية والعينية المقررة له
B11: وفقا لاجره المستحق فى 30 / 6 / 2016 مع ما يترتب على ذلك من اثار وفروق مالية
B12: ومرفق طيه صورة ضوئية من الدعوى حيث انه تم عمل اللازم نحو حساب المستحقات لسيادتكم كالتالى
B13: وذلك عن المدة من : | D13: حتى :
B14: أساسى | C14: أساسى | D14: الفرق | G14: ملاحظات
B15: 2016-06-30 | C15: 2015-06-30
B18: البند | D18: قيمة | E18: عدد الشهور المستحقة | G18: مبلغ المدة | H18: ملاحظات
D19: الشهر | E19: يوم | F19: شهر | G19: المستحقة
B20: بدل معلم ( 50 % )
B21: حافز ( 25 % )
B26: مكافاة الامتحانات ( 200 يوم * 5 % )
B27: جهود غير عادية
B28: الاجمالى
B29: وبذلك يستحق السيد المذكور مبلغ
B30: ونرجو الموافقة على الترخيص بصرف المبلغ المذكور أعلاه للمدعى على اساسي 30 / 6 / 2016
B31: معاش - استقالة - وفاة | E31: ترقية فى
B32: المرفقات :
B33: عدد (2) صورة من الحكم معتمدة ومختومة ومزيلة بالصيغة التنفيذية
B34: عدد (2) صورة طبق الاصل من هيئة قضايا الدولة معتمدة ومختومة
B35: عدد (2) بيان تكاليف معتمدة ومختومة
B36: عدد (2) صورة الرقم القومى معتمدة ومختومة وسارية
B37: وتفضلوا سيادتكم بقبول وافر التحية و الاحترام
B38: المختص | C38: رئيس قسم الماهيات | D38: مدير ادارة الموارد البشرية | F38: المدير المالى والادارى | H38: ختم شعار الجمهورية

Sheet ورقة1
B1: محافظة اسيوط
B2: مديرية التربية والتعليم
B3: ادارة اسيوط التعليمية | D3: مذكرة للعرض على / السيد اللواء الوزير / محافظ اسيوط
B4: ادارة الموارد البشرية
B5: قسم الماهيات
B6: الموضوع : تنفيذ الاحكام القضائية الصادرة لللمعلمين بديوان ادارة اسيوط التعليمية ومدارسها باحقيتهم فى صرف الحوافز ومكافاة الامتحانات والاعمال الاضافية وجميع المزايا النقدية والعينية المقررة
B7: على اساس المرتب فى 30/6/2016 مع ما يترتب على ذلك من اثار من بند بدل المعلم 4 / 45 وبند حافز الاداء 3 / 23 وبند حافز الاثابة 3 / 3 وبند المكافاة 3 / 14 وبند الجهود الغير عادية
B8: العرض : صدر الكتاب الدورى رقم (1) لسنة 2020 من الجهاز المركزى للتنظيم والادارة بشان الاجراءات والمستندات اللازمة لموافاة الجهاز بها بتنفيذ الاحكام القضائية ضد الجهاز الادارى للدولة حيث نص بند (1)
B9: من وعلى ارفاق مذكرة معتمدة من السلطة المختصة متضمنه التكاليف اللازمة لتنفيذ الحكم والبند والنوع المطلوب للتنفيذ منه وحيث وردت الاحكام الاتية باجمالى مبلغ ( ) جنيه مصري لعدد ( )
A10: البند المطلوب تعزيزة : بند بدل المعلم 45 / 4 وبند بدل الاعتماد 46 / 4 وبند حافز الاداء 3 / 21 وبند حافز الاثابة 3 / 3 وبند المكافاة 14 / 3 وبند الجهود غير العادية للمعلمين بادارة اسيوط التعليمية ومدارسها الصادرة لهم احكام قضائية وبياناتهم كالاتى
A11: م | B11: الاسم رباعى | C11: الرقم القومى | D11: المحكمة | E11: الدائرة | F11: اسم المدعى عليه | G11: رقم الدعوى | H11: تاريخ جلسة | I11: بند 4/45 | J11: بند 4/46 | K11: بند 21/3 | L11: بند 3 / 3 | M11: بند 14 / 3 | N11: جهود | O11: اجمالى المستحق
E12: التابعة | H12: الحكم | I12: بدل معلم | J12: بدل اعتماد | K12: حافز اداء | L12: حافز اثابة | M12: مكافاة امتحانات | N12: غير عادية
A13: =sh!A13 -> 1 | B13: =sh!B13 -> وائل عيد احمد محمد | C13: =sh!C13 -> 27212122500097 | D13: =sh!D13 -> محكمة القضاء الادارى باسيوط | E13: =sh!E13 -> 104 | F13: =sh!F13 -> وزير التربية والتعليم ـ محافظ اسيوط - وكيل وزارة التربية والتعليم | G13: =sh!G13 -> 9631لسنة32ق | H13: =sh!H13 -> 2021-10-19 | I13: =sh!W13 -> 2860.56 | J13: =sh!CJ13 -> 9456.68 | K13: =sh!CK13 -> 1429.92 | L13: =sh!AE13 -> 1429.92 | M13: =sh!BW13 -> 4768.2 | N13: =sh!CE13 -> 444.92 | O13: =sh!K13 -> 20390.2
A14: =sh!A14 -> 2 | B14: =sh!B14 -> هانى مصطفى محمد حسانين | C14: =sh!C14 -> 27212122500098 | D14: =sh!D14 -> محكمة القضاء الادارى باسيوط | E14: =sh!E14 -> 104 | F14: =sh!F14 -> محافظ اسيوط -مدير مديرية التربية والتعليم | G14: =sh!G14 -> 23676لسنة32ق | H14: =sh!H14 -> 2021-10-19 | I14: =sh!W14 -> 2971.44 | J14: =sh!CJ14 -> 9822.04 | K14: =sh!CK14 -> 1485.36 | L14: =sh!AE14 -> 1485.36 | M14: =sh!BW14 -> 4952.4 | N14: =sh!CE14 -> 462.14 | O14: =sh!K14 -> 21178.74
A15: =sh!A15 -> 3 | B15: =sh!B15 -> طلعت فتحى سيد محمد | C15: =sh!C15 -> 27212122500099 | D15: =sh!D15 -> محكمة القضاء الادارى باسيوط | E15: =sh!E15 -> 104 | F15: =sh!F15 -> محافظ اسيوط -مدير مديرية التربية والتعليم | G15: =sh!G15 -> 23532لسنة32ق | H15: =sh!H15 -> 2021-10-19 | I15: =sh!W15 -> 3019.68 | J15: =sh!CJ15 -> 9982.44 | K15: =sh!CK15 -> 1509.84 | L15: =sh!AE15 -> 1509.84 | M15: =sh!BW15 -> 5033.4 | N15: =sh!CE15 -> 469.7 | O15: =sh!K15 -> 21524.9
A16: =sh!A16 -> 4 | B16: =sh!B16 -> احمد سيد احمد محمود | C16: =sh!C16 -> 27212122500100 | D16: =sh!D16 -> محكمة القضاء الادارى باسيوط | E16: =sh!E16 -> 104 | F16: =sh!F16 -> محافظ اسيوط -مدير مديرية التربية والتعليم | G16: =sh!G16 -> 25010لسنة32ق | H16: =sh!H16 -> 2021-10-19 | I16: =sh!W16 -> 2735.28 | J16: =sh!CJ16 -> 9041.4 | K16: =sh!CK16 -> 1367.28 | L16: =sh!AE16 -> 1367.28 | M16: =sh!BW16 -> 4558.8 | N16: =sh!CE16 -> 425.46 | O16: =sh!K16 -> 19495.5
A17: =sh!A17 -> 5 | B17: =sh!B17 -> ايمان حسين محمد احمد | C17: =sh!C17 -> 27212122500101 | D17: =sh!D17 -> محكمة القضاء الادارى باسيوط | E17: =sh!E17 -> 104 | F17: =sh!F17 -> محافظ اسيوط -مدير مديرية التربية والتعليم | G17: =sh!G17 -> 23209لسنة32ق | H17: =sh!H17 -> 2021-10-19 | I17: =sh!W17 -> 3452.4 | J17: =sh!CJ17 -> 12492.14 | K17: =sh!CK17 -> 1725.84 | L17: =sh!AE17 -> 1725.84 | M17: =sh!BW17 -> 5754.6 | N17: =sh!CE17 -> 537.04 | O17: =sh!K17 -> 25687.86
A18: =sh!A18 -> 6 | B18: =sh!B18 -> مصطفى هاشم عبد العال حافظ | C18: =sh!C18 -> 27212122500102 | D18: =sh!D18 -> محكمة القضاء الادارى باسيوط | E18: =sh!E18 -> 104 | F18: =sh!F18 -> محافظ اسيوط -مدير مديرية التربية والتعليم | G18: =sh!G18 -> 23674لسنة32ق | H18: =sh!H18 -> 2021-10-19 | I18: =sh!W18 -> 4281.84 | J18: =sh!CJ18 -> 16296.08 | K18: =sh!CK18 -> 2140.56 | L18: =sh!AE18 -> 2140.56 | M18: =sh!BW18 -> 7137 | N18: =sh!CE18 -> 666.12 | O18: =sh!K18 -> 32662.16
A19: =sh!A19 -> 7 | B19: =sh!B19 -> حمديه صالح عبدالفتاح جاد الرب | C19: =sh!C19 -> 27212122500103 | D19: =sh!D19 -> محكمة القضاء الادارى باسيوط | E19: =sh!E19 -> 104 | F19: =sh!F19 -> محافظ اسيوط - وكيل وزارة التربية والتعليم | G19: =sh!G19 -> 25468لسنة32ق | H19: =sh!H19 -> 2021-10-19 | I19: =sh!W19 -> 4192.56 | J19: =sh!CJ19 -> 15954.88 | K19: =sh!CK19 -> 2095.92 | L19: =sh!AE19 -> 2095.92 | M19: =sh!BW19 -> 6987.6 | N19: =sh!CE19 -> 652.12 | O19: =sh!K19 -> 31979
A20: =sh!A20 -> 8 | B20: =sh!B20 -> ناديه صالح عبد الفتاح جاد الرب | C20: =sh!C20 -> 27212122500104 | D20: =sh!D20 -> محكمة القضاء الادارى باسيوط | E20: =sh!E20 -> 104 | F20: =sh!F20 -> محافظ اسيوط - وكيل وزارة التربية والتعليم | G20: =sh!G20 -> 25469لسنة32ق | H20: =sh!H20 -> 2021-10-19 | I20: =sh!W20 -> 2735.28 | J20: =sh!CJ20 -> 9041.4 | K20: =sh!CK20 -> 1367.28 | L20: =sh!AE20 -> 1367.28 | M20: =sh!BW20 -> 4558.8 | N20: =sh!CE20 -> 425.46 | O20: =sh!K20 -> 19495.5
A21: =sh!A21 -> 9 | B21: =sh!B21 -> احمد حسن مصطفى محمد | C21: =sh!C21 -> 27212122500105 | D21: =sh!D21 -> محكمة القضاء الادارى باسيوط | E21: =sh!E21 -> 104 | F21: =sh!F21 -> محافظ اسيوط - وكيل وزارة التربية والتعليم | G21: =sh!G21 -> 7732لسنة32ق | H21: =sh!H21 -> 2021-10-19 | I21: =sh!W21 -> 1926 | J21: =sh!CJ21 -> 5403.36 | K21: =sh!CK21 -> 1337.28 | L21: =sh!AE21 -> 962.64 | M21: =sh!BW21 -> 3210 | N21: =sh!CE21 -> 299.6 | O21: =sh!K21 -> 13138.88
A22: =sh!A22 -> 10 | B22: =sh!B22 -> عصام عبد الرحيم على سيد | C22: =sh!C22 -> 27212122500106 | D22: =sh!D22 -> محكمة القضاء الادارى باسيوط | E22: =sh!E22 -> 104 | F22: =sh!F22 -> محافظ اسيوط - وكيل وزارة التربية والتعليم | G22: =sh!G22 -> 7729لسنة32ق | H22: =sh!H22 -> 2021-10-19 | I22: =sh!W22 -> 4721.04 | J22: =sh!CJ22 -> 17966.04 | K22: =sh!CK22 -> 2360.16 | L22: =sh!AE22 -> 2360.16 | M22: =sh!BW22 -> 7868.4 | N22: =sh!CE22 -> 734.3 | O22: =sh!K22 -> 36010.1
A23: =sh!A23 -> 11 | B23: =sh!B23 -> رباب محمد شوقي ابراهيم | C23: =sh!C23 -> 27212122500107 | D23: =sh!D23 -> محكمة القضاء الادارى باسيوط | E23: =sh!E23 -> 104 | F23: =sh!F23 -> محافظ اسيوط - وكيل وزارة التربية والتعليم | G23: =sh!G23 -> 23490لسنة32ق | H23: =sh!H23 -> 2021-10-19 | I23: =sh!W23 -> 2737.44 | J23: =sh!CJ23 -> 9048.76 | K23: =sh!CK23 -> 1368.72 | L23: =sh!AE23 -> 1368.72 | M23: =sh!BW23 -> 4562.4 | N23: =sh!CE23 -> 425.74 | O23: =sh!K23 -> 19511.78
A24: =sh!A24 -> 12 | B24: =sh!B24 -> سمير خليل شحاته شحاته | C24: =sh!C24 -> 27212122500108 | D24: =sh!D24 -> محكمة القضاء الادارى باسيوط | E24: =sh!E24 -> 104 | F24: =sh!F24 -> محافظ اسيوط - وكيل وزارة التربية والتعليم | G24: =sh!G24 -> 23853لسنة32ق | H24: =sh!H24 -> 2021-10-19 | I24: =sh!W24 -> 2735.28 | J24: =sh!CJ24 -> 9041.4 | K24: =sh!CK24 -> 1367.28 | L24: =sh!AE24 -> 1367.28 | M24: =sh!BW24 -> 4558.8 | N24: =sh!CE24 -> 425.46 | O24: =sh!K24 -> 19495.5
A25: =sh!A25 -> 13 | B25: =sh!B25 -> سعاد محمد محمد احمد | C25: =sh!C25 -> 27212122500109 | D25: =sh!D25 -> محكمة القضاء الادارى باسيوط | E25: =sh!E25 -> 104 | F25: =sh!F25 -> محافظ اسيوط - وكيل وزارة التربية والتعليم | G25: =sh!G25 -> 8578لسنة32ق | H25: =sh!H25 -> 2021-10-19 | I25: =sh!W25 -> 3944.88 | J25: =sh!CJ25 -> 15013.76 | K25: =sh!CK25 -> 1972.08 | L25: =sh!AE25 -> 1972.08 | M25: =sh!BW25 -> 6575.4 | N25: =sh!CE25 -> 613.62 | O25: =sh!K25 -> 30091.82
A26: =sh!A26 -> 14 | B26: =sh!B26 -> مرفت زين العابدين احمد حسين | C26: =sh!C26 -> 27212122500110 | D26: =sh!D26 -> محكمة القضاء الادارى باسيوط | E26: =sh!E26 -> 90 | F26: =sh!F26 -> محافظ اسيوط - وكيل وزارة التربية والتعليم | G26: =sh!G26 -> 13698لسنة32ق | H26: =sh!H26 -> 2021-06-22 | I26: =sh!W26 -> 4302.72 | J26: =sh!CJ26 -> 16375.4 | K26: =sh!CK26 -> 2151.36 | L26: =sh!AE26 -> 2151.36 | M26: =sh!BW26 -> 7171.8 | N26: =sh!CE26 -> 669.34 | O26: =sh!K26 -> 32821.98
A27: =sh!A27 -> 15 | B27: =sh!B27 -> ايمان صبحى فهمى واصف | C27: =sh!C27 -> 27212122500111 | D27: =sh!D27 -> محكمة القضاء الادارى باسيوط | E27: =sh!E27 -> 90 | F27: =sh!F27 -> محافظ اسيوط - وكيل وزارة التربية والتعليم | G27: =sh!G27 -> 13699لسنة32ق | H27: =sh!H27 -> 2021-06-22 | I27: =sh!W27 -> 3814.56 | J27: =sh!CJ27 -> 14517.68 | K27: =sh!CK27 -> 1907.28 | L27: =sh!AE27 -> 1907.28 | M27: =sh!BW27 -> 6358.2 | N27: =sh!CE27 -> 593.32 | O27: =sh!K27 -> 29098.32
A28: =sh!A28 -> 16 | B28: =sh!B28 -> امل عبد العاطى رمضان الصعيدى | C28: =sh!C28 -> 27212122500112 | D28: =sh!D28 -> محكمة القضاء الادارى باسيوط | E28: =sh!E28 -> 90 | F28: =sh!F28 -> محافظ اسيوط - وكيل وزارة التربية والتعليم ـ وزير التربية والتعليم | G28: =sh!G28 -> 2759لسنة32ق | H28: =sh!H28 -> 2021-06-22 | I28: =sh!W28 -> 2841.12 | J28: =sh!CJ28 -> 7970.92 | K28: =sh!CK28 -> 1973 | L28: =sh!AE28 -> 1420.56 | M28: =sh!BW28 -> 4735.2 | N28: =sh!CE28 -> 441.84 | O28: =sh!K28 -> 19382.64
A29: =sh!A29 -> 17 | B29: =sh!B29 -> محمد عبد الرحمن محمد الداخلى | C29: =sh!C29 -> 27212122500113 | D29: =sh!D29 -> محكمة القضاء الادارى باسيوط | E29: =sh!E29 -> 90 | F29: =sh!F29 -> محافظ اسيوط - وكيل وزارة التربية والتعليم ـ وزير التربية والتعليم | G29: =sh!G29 -> 13855لسنة32ق | H29: =sh!H29 -> 2021-06-22 | I29: =sh!W29 -> 3138.48 | J29: =sh!CJ29 -> 10374.2 | K29: =sh!CK29 -> 1568.88 | L29: =sh!AE29 -> 1568.88 | M29: =sh!BW29 -> 5230.8 | N29: =sh!CE29 -> 488.18 | O29: =sh!K29 -> 22369.42
A30: =sh!A30 -> 18 | B30: =sh!B30 -> زينب عباس محمد فرغلى | C30: =sh!C30 -> 27212122500114 | D30: =sh!D30 -> محكمة القضاء الادارى باسيوط | E30: =sh!E30 -> 90 | F30: =sh!F30 -> محافظ اسيوط - وكيل وزارة التربية والتعليم | G30: =sh!G30 -> 12921لسنة32ق | H30: =sh!H30 -> 2021-06-22 | I30: =sh!W30 -> 4009.68 | J30: =sh!CJ30 -> 15260.36 | K30: =sh!CK30 -> 2004.48 | L30: =sh!AE30 -> 2004.48 | M30: =sh!BW30 -> 6683.4 | N30: =sh!CE30 -> 623.7 | O30: =sh!K30 -> 30586.1
A31: =sh!A31 -> 19 | B31: =sh!B31 -> ولاء محمد على عبد الرحمن | C31: =sh!C31 -> 27212122500115 | D31: =sh!D31 -> محكمة القضاء الادارى باسيوط | E31: =sh!E31 -> 90 | F31: =sh!F31 -> محافظ اسيوط - وكيل وزارة التربية والتعليم | G31: =sh!G31 -> 12852لسنة32ق | H31: =sh!H31 -> 2021-06-22 | I31: =sh!W31 -> 2294.64 | J31: =sh!CJ31 -> 6438.32 | K31: =sh!CK31 -> 1593.28 | L31: =sh!AE31 -> 1146.96 | M31: =sh!BW31 -> 3825 | N31: =sh!CE31 -> 357 | O31: =sh!K31 -> 15655.2
A32: =sh!A32 -> 20 | B32: =sh!B32 -> امانى محمد عز الدين سلامه | C32: =sh!C32 -> 27212122500116 | D32: =sh!D32 -> محكمة القضاء الادارى باسيوط | E32: =sh!E32 -> 90 | F32: =sh!F32 -> محافظ اسيوط - مديرمديرية التربية والتعليم | G32: =sh!G32 -> 13839لسنة32ق | H32: =sh!H32 -> 2021-06-22 | I32: =sh!W32 -> 2929.68 | J32: =sh!CJ32 -> 9134.82 | K32: =sh!CK32 -> 1464.48 | L32: =sh!AE32 -> 1464.48 | M32: =sh!BW32 -> 4882.8 | N32: =sh!CE32 -> 455.7 | O32: =sh!K32 -> 20331.96
A33: =sh!A33 -> 21 | B33: =sh!B33 -> هدى على عبد الحليم مفتاح | C33: =sh!C33 -> 27212122500117 | D33: =sh!D33 -> محكمة القضاء الادارى باسيوط | E33: =sh!E33 -> 90 | F33: =sh!F33 -> محافظ اسيوط - مديرمديرية التربية والتعليم | G33: =sh!G33 -> 14092لسنة32ق | H33: =sh!H33 -> 2021-06-22 | I33: =sh!W33 -> 2793.6 | J33: =sh!CJ33 -> 9235.12 | K33: =sh!CK33 -> 1396.8 | L33: =sh!AE33 -> 1396.8 | M33: =sh!BW33 -> 4656.6 | N33: =sh!CE33 -> 434.56 | O33: =sh!K33 -> 19913.48
A34: =sh!A34 -> 22 | B34: =sh!B34 -> سامح نحميا شنوده جبران | C34: =sh!C34 -> 27212122500118 | D34: =sh!D34 -> محكمة القضاء الادارى باسيوط | E34: =sh!E34 -> 90 | F34: =sh!F34 -> محافظ اسيوط - مديرمديرية التربية والتعليم | G34: =sh!G34 -> 14086لسنة32ق | H34: =sh!H34 -> 2021-06-22 | I34: =sh!W34 -> 3138.48 | J34: =sh!CJ34 -> 10374.2 | K34: =sh!CK34 -> 1568.88 | L34: =sh!AE34 -> 1568.88 | M34: =sh!BW34 -> 5230.8 | N34: =sh!CE34 -> 488.18 | O34: =sh!K34 -> 22369.42
A35: =sh!A35 -> 23 | B35: =sh!B35 -> عبد الناصر مختار محمد محمد | C35: =sh!C35 -> 27212122500119 | D35: =sh!D35 -> محكمة القضاء الادارى باسيوط | E35: =sh!E35 -> 90 | F35: =sh!F35 -> محافظ اسيوط - مديرمديرية التربية والتعليم باسيوط مدير ادارة اسيوط التعليمية | G35: =sh!G35 -> 10176لسنة31ق | H35: =sh!H35 -> 2021-04-20 | I35: =sh!W35 -> 4063.68 | J35: =sh!CJ35 -> 15464.56 | K35: =sh!CK35 -> 2031.84 | L35: =sh!AE35 -> 2031.84 | M35: =sh!BW35 -> 6772.8 | N35: =sh!CE35 -> 632.1 | O35: =sh!K35 -> 30996.82
A36: =sh!A36 -> 24 | B36: =sh!B36 -> منى فرغلى عبد الحليم محمد | C36: =sh!C36 -> 27212122500120 | D36: =sh!D36 -> محكمة القضاء الادارى باسيوط | E36: =sh!E36 -> 90 | F36: =sh!F36 -> محافظ اسيوط - مديرمديرية التربية والتعليم باسيوط مدير ادارة اسيوط التعليمية | G36: =sh!G36 -> 10177لسنة31ق | H36: =sh!H36 -> 2021-04-20 | I36: =sh!W36 -> 2738.88 | J36: =sh!CJ36 -> 9053.52 | K36: =sh!CK36 -> 1369.44 | L36: =sh!AE36 -> 1369.44 | M36: =sh!BW36 -> 4564.8 | N36: =sh!CE36 -> 426.02 | O36: =sh!K36 -> 19522.1
A37: =sh!A37 -> 25 | B37: =sh!B37 -> اميمه محمد حامد بكر | C37: =sh!C37 -> 27212122500121 | D37: =sh!D37 -> محكمة القضاء الادارى باسيوط | E37: =sh!E37 -> 90 | F37: =sh!F37 -> محافظ اسيوط - وكيل وزارة التربية والتعليم ـ وزير التربية والتعليم | G37: =sh!G37 -> 13852لسنة32ق | H37: =sh!H37 -> 2021-06-22 | I37: =sh!W37 -> 3384 | J37: =sh!CJ37 -> 12244.39 | K37: =sh!CK37 -> 1692 | L37: =sh!AE37 -> 1692 | M37: =sh!BW37 -> 5640.6 | N37: =sh!CE37 -> 526.4 | O37: =sh!K37 -> 25179.39
A38: =sh!A38 -> 26 | B38: =sh!B38 -> مديحه على شاكر على | C38: =sh!C38 -> 27212122500122 | D38: =sh!D38 -> محكمة القضاء الادارى باسيوط | E38: =sh!E38 -> 104 | F38: =sh!F38 -> محافظ اسيوط - مديرمديرية التربية والتعليم | G38: =sh!G38 -> 28190لسنة32ق | H38: =sh!H38 -> 2021-12-21 | I38: =sh!W38 -> 2659.3 | J38: =sh!CJ38 -> 8813.46 | K38: =sh!CK38 -> 1329.3 | L38: =sh!AE38 -> 1329.3 | M38: =sh!BW38 -> 4558.8 | N38: =sh!CE38 -> 425.46 | O38: =sh!K38 -> 19115.62
A39: =sh!A39 -> 27 | B39: =sh!B39 -> خالد اسماعيل عثمان بديوى | C39: =sh!C39 -> 27212122500123 | D39: =sh!D39 -> محكمة القضاء الادارى باسيوط | E39: =sh!E39 -> 104 | F39: =sh!F39 -> محافظ اسيوط - وكيل وزارة التربية والتعليم | G39: =sh!G39 -> 26337لسنة32ق | H39: =sh!H39 -> 2021-12-21 | I39: =sh!W39 -> 3934.11 | J39: =sh!CJ39 -> 14989.69 | K39: =sh!CK39 -> 1966.7 | L39: =sh!AE39 -> 1966.7 | M39: =sh!BW39 -> 6649.8 | N39: =sh!CE39 -> 620.62 | O39: =sh!K39 -> 30127.62
A40: =sh!A40 -> 28 | B40: =sh!B40 -> جيهان محمد احمد محمد | C40: =sh!C40 -> 27212122500124 | D40: =sh!D40 -> محكمة القضاء الادارى باسيوط | E40: =sh!E40 -> 104 | F40: =sh!F40 -> محافظ اسيوط - مديرمديرية التربية والتعليم | G40: =sh!G40 -> 28399لسنة32ق | H40: =sh!H40 -> 2021-12-21 | I40: =sh!W40 -> 2784.6 | J40: =sh!CJ40 -> 9229.66 | K40: =sh!CK40 -> 1392.3 | L40: =sh!AE40 -> 1392.3 | M40: =sh!BW40 -> 4774.2 | N40: =sh!CE40 -> 445.48 | O40: =sh!K40 -> 20018.54
A41: =sh!A41 -> 29 | B41: =sh!B41 -> عبد الله محمد عبد العزيز محمد | C41: =sh!C41 -> 27212122500125 | D41: =sh!D41 -> محكمة القضاء الادارى باسيوط | E41: =sh!E41 -> 104 | F41: =sh!F41 -> محافظ اسيوط - وكيل وزارة التربية والتعليم ـ وزير التربية والتعليم ـ وزير المالية | G41: =sh!G41 -> 26619لسنة32ق | H41: =sh!H41 -> 2021-12-21 | I41: =sh!W41 -> 3670.7 | J41: =sh!CJ41 -> 13986 | K41: =sh!CK41 -> 1835.35 | L41: =sh!AE41 -> 1835.35 | M41: =sh!BW41 -> 6204.6 | N41: =sh!CE41 -> 579.04 | O41: =sh!K41 -> 28111.04
A42: =sh!A42 -> 30 | B42: =sh!B42 -> محمد سيد عبد الحافظ احمد | C42: =sh!C42 -> 27212122500126 | D42: =sh!D42 -> محكمة القضاء الادارى باسيوط | E42: =sh!E42 -> 90 | F42: =sh!F42 -> محافظ اسيوط - وكيل وزارة التربية والتعليم | G42: =sh!G42 -> 5916لسنة32ق | H42: =sh!H42 -> 2021-08-24 | I42: =sh!W42 -> 3727.44 | J42: =sh!CJ42 -> 14186.28 | K42: =sh!CK42 -> 1863.36 | L42: =sh!AE42 -> 1863.36 | M42: =sh!BW42 -> 6213 | N42: =sh!CE42 -> 579.88 | O42: =sh!K42 -> 28433.32
A43: =sh!A43 -> 31 | B43: =sh!B43 -> نفين نبيه ملك نصر | C43: =sh!C43 -> 27212122500127 | D43: =sh!D43 -> محكمة القضاء الادارى باسيوط | E43: =sh!E43 -> 104 | F43: =sh!F43 -> محافظ اسيوط - مديرمديرية التربية والتعليم | G43: =sh!G43 -> 23210لسنة32ق | H43: =sh!H43 -> 2021-10-19 | I43: =sh!W43 -> 4016.16 | J43: =sh!CJ43 -> 15283.72 | K43: =sh!CK43 -> 2008.08 | L43: =sh!AE43 -> 2008.08 | M43: =sh!BW43 -> 6693.6 | N43: =sh!CE43 -> 624.68 | O43: =sh!K43 -> 30634.32
A44: =sh!A44 -> 32 | B44: =sh!B44 -> هناء محفوظ صديق ساويرس | C44: =sh!C44 -> 27212122500128 | D44: =sh!D44 -> محكمة القضاء الادارى باسيوط | E44: =sh!E44 -> 104 | F44: =sh!F44 -> محافظ اسيوط - مديرمديرية التربية والتعليم | G44: =sh!G44 -> 23766لسنة32ق | H44: =sh!H44 -> 2021-10-19 | I44: =sh!W44 -> 4598.64 | J44: =sh!CJ44 -> 17500.24 | K44: =sh!CK44 -> 2298.96 | L44: =sh!AE44 -> 2298.96 | M44: =sh!BW44 -> 7664.4 | N44: =sh!CE44 -> 715.26 | O44: =sh!K44 -> 35076.46
A45: =sh!A45 -> 33 | B45: =sh!B45 -> منال عبد الرازق محمد مصطفى | C45: =sh!C45 -> 27212122500129 | D45: =sh!D45 -> محكمة القضاء الادارى باسيوط | E45: =sh!E45 -> 104 | F45: =sh!F45 -> وزير التربية والتعليم ـ محافظ اسيوط - وكيل وزارة التربية والتعليم | G45: =sh!G45 -> 15879لسنة32ق | H45: =sh!H45 -> 2021-11-23 | I45: =sh!W45 -> 2864.88 | J45: =sh!CJ45 -> 9469.8 | K45: =sh!CK45 -> 1432.08 | L45: =sh!AE45 -> 1432.08 | M45: =sh!BW45 -> 4774.8 | N45: =sh!CE45 -> 445.62 | O45: =sh!K45 -> 20419.26
A46: =sh!A46 -> 34 | B46: =sh!B46 -> اسماعيل زين عمر خليل | C46: =sh!C46 -> 27212122500130 | D46: =sh!D46 -> محكمة القضاء الادارى باسيوط | E46: =sh!E46 -> 104 | F46: =sh!F46 -> وزير التربية والتعليم ـ محافظ اسيوط - وكيل وزارة التربية والتعليم | G46: =sh!G46 -> 19185لسنة32ق | H46: =sh!H46 -> 2022-01-18 | I46: =sh!W46 -> 3460.32 | J46: =sh!CJ46 -> 12520.52 | K46: =sh!CK46 -> 1730.16 | L46: =sh!AE46 -> 1730.16 | M46: =sh!BW46 -> 5767.8 | N46: =sh!CE46 -> 538.3 | O46: =sh!K46 -> 25747.26
A47: =sh!A47 -> 35 | B47: =sh!B47 -> هبه محمد ثابت احمد | C47: =sh!C47 -> 27212122500131 | D47: =sh!D47 -> محكمة القضاء الادارى باسيوط | E47: =sh!E47 -> 104 | F47: =sh!F47 -> محافظ اسيوط - وكيل وزارة التربية والتعليم | G47: =sh!G47 -> 23491لسنة32ق | H47: =sh!H47 -> 2021-10-19 | I47: =sh!W47 -> 2080.08 | J47: =sh!CJ47 -> 5445.49 | K47: =sh!CK47 -> 1834.43 | L47: =sh!AE47 -> 1039.68 | M47: =sh!BW47 -> 3466.8 | N47: =sh!CE47 -> 323.54 | O47: =sh!K47 -> 14190.02
A48: =sh!A48 -> 36 | B48: =sh!B48 -> احمد كمال على حسانين | C48: =sh!C48 -> 27212122500132 | D48: =sh!D48 -> محكمة القضاء الادارى باسيوط | E48: =sh!E48 -> 104 | F48: =sh!F48 -> محافظ اسيوط - وكيل وزارة التربية والتعليم | G48: =sh!G48 -> 27665لسنة32ق | H48: =sh!H48 -> 2021-12-21 | I48: =sh!W48 -> 2848.3 | J48: =sh!CJ48 -> 8890.68 | K48: =sh!CK48 -> 1423.8 | L48: =sh!AE48 -> 1423.8 | M48: =sh!BW48 -> 4882.8 | N48: =sh!CE48 -> 455.7 | O48: =sh!K48 -> 19925.08
A49: =sh!A49 -> 37 | B49: =sh!B49 -> عبد العزيز عبد الحكيم صديق عبد الرحمن | C49: =sh!C49 -> 27212122500133 | D49: =sh!D49 -> محكمة القضاء الادارى باسيوط | E49: =sh!E49 -> 104 | F49: =sh!F49 -> محافظ اسيوط - وكيل وزارة التربية والتعليم ـ وزير التربية والتعليم | G49: =sh!G49 -> 26909لسنة32ق | H49: =sh!H49 -> 2021-12-21 | I49: =sh!W49 -> 2263.48 | J49: =sh!CJ49 -> 6360.06 | K49: =sh!CK49 -> 1562.12 | L49: =sh!AE49 -> 1131.74 | M49: =sh!BW49 -> 3825.6 | N49: =sh!CE49 -> 357 | O49: =sh!K49 -> 15500
A50: =sh!A50 -> 38 | B50: =sh!B50 -> عبد السلام عبد الرازق عبد العليم عبد الله | C50: =sh!C50 -> 27212122500134 | D50: =sh!D50 -> محكمة القضاء الادارى باسيوط | E50: =sh!E50 -> 104 | F50: =sh!F50 -> محافظ اسيوط - وكيل وزارة التربية والتعليم ـ وزير التربية والتعليم | G50: =sh!G50 -> 26907لسنة32ق | H50: =sh!H50 -> 2021-12-21 | I50: =sh!W50 -> 2814.44 | J50: =sh!CJ50 -> 8780.97 | K50: =sh!CK50 -> 1407.22 | L50: =sh!AE50 -> 1407.22 | M50: =sh!BW50 -> 4757.4 | N50: =sh!CE50 -> 443.94 | O50: =sh!K50 -> 19611.19
A51: =sh!A51 -> 39 | B51: =sh!B51 -> زينب توفيق عبد السلام ابوزيد | C51: =sh!C51 -> 27212122500135 | D51: =sh!D51 -> محكمة القضاء الادارى باسيوط | E51: =sh!E51 -> 104 | F51: =sh!F51 -> محافظ اسيوط - وكيل وزارة التربية والتعليم | G51: =sh!G51 -> 19966لسنة32ق | H51: =sh!H51 -> 2022-01-18 | I51: =sh!W51 -> 2601.36 | J51: =sh!CJ51 -> 8111.99 | K51: =sh!CK51 -> 1300.32 | L51: =sh!AE51 -> 1300.32 | M51: =sh!BW51 -> 4336.2 | N51: =sh!CE51 -> 404.6 | O51: =sh!K51 -> 18054.79
A52: =sh!A52 -> 40 | B52: =sh!B52 -> حسن احمد رجب عمر | C52: =sh!C52 -> 27212122500136 | D52: =sh!D52 -> محكمة القضاء الادارى باسيوط | E52: =sh!E52 -> 104 | F52: =sh!F52 -> محافظ اسيوط - وكيل وزارة التربية والتعليم | G52: =sh!G52 -> 19349لسنة32ق | H52: =sh!H52 -> 2022-01-18 | I52: =sh!W52 -> 3659.04 | J52: =sh!CJ52 -> 12095.16 | K52: =sh!CK52 -> 1829.52 | L52: =sh!AE52 -> 1829.52 | M52: =sh!BW52 -> 6098.4 | N52: =sh!CE52 -> 569.1 | O52: =sh!K52 -> 26080.74
A53: =sh!A53 -> 41 | B53: =sh!B53 -> نجلاء محمد خليفة مصطفى | C53: =sh!C53 -> 27212122500137 | D53: =sh!D53 -> محكمة القضاء الادارى باسيوط | E53: =sh!E53 -> 104 | F53: =sh!F53 -> محافظ اسيوط - وكيل وزارة التربية والتعليم | G53: =sh!G53 -> 19342لسنة32ق | H53: =sh!H53 -> 2022-01-18 | I53: =sh!W53 -> 2031.12 | J53: =sh!CJ53 -> 5698.28 | K53: =sh!CK53 -> 1410.28 | L53: =sh!AE53 -> 1015.2 | M53: =sh!BW53 -> 3385.2 | N53: =sh!CE53 -> 315.84 | O53: =sh!K53 -> 13855.92
A54: =sh!A54 -> 42 | B54: =sh!B54 -> امجد انيس نبيه جرجس | C54: =sh!C54 -> 27212122500138 | D54: =sh!D54 -> محكمة القضاء الادارى باسيوط | E54: =sh!E54 -> 104 | F54: =sh!F54 -> محافظ اسيوط - وكيل وزارة التربية والتعليم | G54: =sh!G54 -> 19348لسنة32ق | H54: =sh!H54 -> 2022-01-18 | I54: =sh!W54 -> 2733.84 | J54: =sh!CJ54 -> 9037.8 | K54: =sh!CK54 -> 1366.56 | L54: =sh!AE54 -> 1366.56 | M54: =sh!BW54 -> 4557 | N54: =sh!CE54 -> 425.32 | O54: =sh!K54 -> 19487.08
A55: =sh!A55 -> 43 | B55: =sh!B55 -> محمد احمد موسى احمد | C55: =sh!C55 -> 27212122500139 | D55: =sh!D55 -> محكمة القضاء الادارى باسيوط | E55: =sh!E55 -> 90 | F55: =sh!F55 -> محافظ اسيوط -مدير مديرية التربية والتعليم ـ مدير ادارة اسيوط التعليمية | G55: =sh!G55 -> 7215لسنة32ق | H55: =sh!H55 -> 2021-09-21 | I55: =sh!W55 -> 3287.52 | J55: =sh!CJ55 -> 10867.08 | K55: =sh!CK55 -> 1643.76 | L55: =sh!AE55 -> 1643.76 | M55: =sh!BW55 -> 5479.2 | N55: =sh!CE55 -> 511.28 | O55: =sh!K55 -> 23432.6
A56: =sh!A56 -> 44 | B56: =sh!B56 -> سيد احمد موسى احمد | C56: =sh!C56 -> 27212122500140 | D56: =sh!D56 -> محكمة القضاء الادارى باسيوط | E56: =sh!E56 -> 90 | F56: =sh!F56 -> محافظ اسيوط -مدير مديرية التربية والتعليم ـ مدير ادارة اسيوط التعليمية | G56: =sh!G56 -> 7231لسنة32ق | H56: =sh!H56 -> 2021-09-21 | I56: =sh!W56 -> 4173.12 | J56: =sh!CJ56 -> 15099.47 | K56: =sh!CK56 -> 2086.56 | L56: =sh!AE56 -> 2086.56 | M56: =sh!BW56 -> 6955.8 | N56: =sh!CE56 -> 649.18 | O56: =sh!K56 -> 31050.69
A57: =sh!A57 -> 45 | B57: =sh!B57 -> حنان مراد وهيب نصر الله | C57: =sh!C57 -> 27212122500141 | D57: =sh!D57 -> محكمة القضاء الادارى باسيوط | E57: =sh!E57 -> 90 | F57: =sh!F57 -> محافظ اسيوط - وكيل وزارة التربية والتعليم | G57: =sh!G57 -> 13317لسنة32ق | H57: =sh!H57 -> 2021-06-22 | I57: =sh!W57 -> 3565.44 | J57: =sh!CJ57 -> 12899.96 | K57: =sh!CK57 -> 1782.72 | L57: =sh!AE57 -> 1782.72 | M57: =sh!BW57 -> 5942.4 | N57: =sh!CE57 -> 554.54 | O57: =sh!K57 -> 26527.78
B58: الاجمالى | I58: =SUM(I13:I57) -> 145537.09 | J58: =SUM(J13:J57) -> 504270.18 | K58: 75752.82 | L58: 72759.21 | M58: 243266.4 | N58: 22702.4 | O58: =SUM(O13:O57) -> 1064288.1
B59: ترى ادارة اسيوط التعليمية : موافقة سيادتكم على تعزيز بند بدل المعلم 4 / 45 وبند بدل الاعتماد 4 / 46 وبند حافز الاداء 3 / 23 وبند الاثابة 3 / 3 وبند المكافاة 3 / 14
B60: وبند الجهود غير العادية لعدد ( ) من المعلمين بادارة اسيوط التعليمية ومدارسها الصادر لهم احكام قضائية باحقيتهم فى صرفها
B61: رفع موافقة سيادتكم لمديرية النظيم والادارة باسيوط للدراسة واتخاذ اللازم
B62: المختص رئيس القسم مدير الموارد البشرية المدير المالى والادارى المدير العام مدير عام الشئون المالية والادارية وكيل الوزارة
